Workbook

Sheet Input
B7: Development of BGS-RSCP Cost and Bid Factors for 2018/2019 BGS Filing
B8: Adjusted to Billing Time Periods
E9: Based on average of year 2014,2015 & 2016 Load Profile Information
A10: Table #1 | B10: % Usage During PJM On-Peak Period | E10: On-Peak periods defined as the 16 hr PJM Trading period, adj for NERC holidays
C11: Profile Meter Data | D11: Profile Meter Data | E11: Profile Meter Data | F11: Profile Meter Data | G11: Profile Meter Data | H11: Profile Meter Data | I11: --- Other Analysis --- | K11: Profile Meter Data | L11: Profile Meter Data
B12: (data rounded to nearest .01%) | C12: RS | D12: RHS | E12: RLM | F12: WH | G12: WHS | H12: HS | I12: PSAL | J12: BPL | K12: GLP | L12: LPL-S
B14: January | C14: 0.4757 | D14: 0.469 | E14: 0.4827 | F14: 0.4367 | G14: 0.4367 | H14: 0.4713 | I14: 0.2997 | J14: 0.2997 | K14: 0.556 | L14: 0.537
B15: February | C15: 0.502 | D15: 0.485 | E15: 0.5093 | F15: 0.4527 | G15: 0.4527 | H15: 0.4853 | I15: 0.2967 | J15: 0.2967 | K15: 0.5733 | L15: 0.5603
B16: March | C16: 0.492 | D16: 0.4887 | E16: 0.4993 | F16: 0.464 | G16: 0.464 | H16: 0.4787 | I16: 0.253 | J16: 0.253 | K16: 0.5773 | L16: 0.5627
B17: April | C17: 0.5103 | D17: 0.5183 | E17: 0.5167 | F17: 0.4673 | G17: 0.4673 | H17: 0.5083 | I17: 0.2293 | J17: 0.2293 | K17: 0.595 | L17: 0.5803
B18: May | C18: 0.468 | D18: 0.4847 | E18: 0.4827 | F18: 0.4203 | G18: 0.4203 | H18: 0.5427 | I18: 0.202 | J18: 0.202 | K18: 0.567 | L18: 0.553
B19: June | C19: 0.5337 | D19: 0.5433 | E19: 0.5543 | F19: 0.469 | G19: 0.469 | H19: 0.6417 | I19: 0.2037 | J19: 0.2037 | K19: 0.6143 | L19: 0.59
B20: July | C20: 0.5283 | D20: 0.5353 | E20: 0.5493 | F20: 0.478 | G20: 0.478 | H20: 0.644 | I20: 0.1953 | J20: 0.1953 | K20: 0.6 | L20: 0.567
B21: August | C21: 0.513 | D21: 0.526 | E21: 0.5373 | F21: 0.5037 | G21: 0.5037 | H21: 0.6327 | I21: 0.212 | J21: 0.212 | K21: 0.5953 | L21: 0.5607
B22: September | C22: 0.502 | D22: 0.5207 | E22: 0.525 | F22: 0.4897 | G22: 0.4897 | H22: 0.631 | I22: 0.2377 | J22: 0.2377 | K22: 0.597 | L22: 0.5683
B23: October | C23: 0.5007 | D23: 0.5167 | E23: 0.521 | F23: 0.504 | G23: 0.504 | H23: 0.5723 | I23: 0.2697 | J23: 0.2697 | K23: 0.5987 | L23: 0.5767
B24: November | C24: 0.4567 | D24: 0.4547 | E24: 0.4797 | F24: 0.424 | G24: 0.424 | H24: 0.4707 | I24: 0.298 | J24: 0.298 | K24: 0.5547 | L24: 0.5333
B25: December | C25: 0.4923 | D25: 0.4917 | E25: 0.5127 | F25: 0.455 | G25: 0.455 | H25: 0.4973 | I25: 0.318 | J25: 0.318 | K25: 0.574 | L25: 0.5483
E27: Based on average of year 2014, 2015 & 2016 Load Profile Information
A28: Table #2 | B28: % Usage During PSE&G On-Peak Billing Period | E28: On-Peak periods as defined in specified rate schedule (average of %s for 2014, 2015 & 2016)
C29: Profile Meter Data | D29: Profile Meter Data
B30: (data rounded to nearest .01%) | C30: RLM | D30: LPL-S
B32: January | C32: 0.4341 | D32: 0.4846
B33: February | C33: 0.4266 | D33: 0.4825
B34: March | C34: 0.4197 | D34: 0.4848
B35: April | C35: 0.423 | D35: 0.4902
B36: May | C36: 0.4402 | D36: 0.5059
B37: June | C37: 0.4658 | D37: 0.5117
B38: July | C38: 0.4894 | D38: 0.513
B39: August | C39: 0.4818 | D39: 0.5058
B40: September | C40: 0.4848 | D40: 0.5084
B41: October | C41: 0.4593 | D41: 0.513
B42: November | C42: 0.4358 | D42: 0.5039
B43: December | C43: 0.4312 | D43: 0.4911
A46: Table #3 | B46: Class Usage @ customer
B47: calendar month sales forecasted for 2018, less % for LPL-Sec > 500 kW Peak Load Share
B48: in MWh | C48: RS | D48: RHS | E48: RLM | F48: WH | G48: WHS | H48: HS | I48: PSAL | J48: BPL | K48: GLP | L48: LPL-S
B50: January | C50: 1046226.98 | D50: 20269.48549 | E50: 17920.82019 | F50: 131 | G50: 3 | H50: 2531.598405 | I50: 16433 | J50: 31380 | K50: 540032.4933 | L50: 618043.9933
B51: February | C51: 890995.6637 | D51: 17115.96908 | E51: 14519.57109 | F51: 139 | G51: 3 | H51: 2132.096503 | I51: 14486 | J51: 29833 | K51: 501922.3533 | L51: 602193.3177
B52: March | C52: 869461.3524 | D52: 15107.63207 | E52: 15191.06632 | F52: 118 | G52: 3 | H52: 2019.656736 | I52: 13475 | J52: 26173 | K52: 520694.9965 | L52: 617360.8137
B53: April | C53: 776635.4764 | D53: 9125.351614 | E53: 14323.05861 | F53: 129 | G53: 3 | H53: 1195.09844 | I53: 12345 | J53: 23503 | K53: 503500.6922 | L53: 552517.1409
B54: May | C54: 804206.8256 | D54: 6595.701593 | E54: 14690.93742 | F54: 119 | G54: 2 | H54: 651.6395625 | I54: 10458 | J54: 21900 | K54: 509234.5652 | L54: 627125.1568
B55: June | C55: 1185203.944 | D55: 7215.76971 | E55: 22053.17022 | F55: 93 | G55: 3 | H55: 900.3699577 | I55: 10264 | J55: 18101 | K55: 551415.7144 | L55: 606560.996
B56: July | C56: 1578158.448 | D56: 8472.048605 | E56: 29501.08619 | F56: 79 | G56: 1 | H56: 895.2590591 | I56: 10333 | J56: 18677 | K56: 652821.9604 | L56: 703284.4381
B57: August | C57: 1468970.864 | D57: 8098.868253 | E57: 25876.31578 | F57: 78 | G57: 2 | H57: 823.7064797 | I57: 11212 | J57: 20782 | K57: 635276.5529 | L57: 698740.9368
B58: September | C58: 1016761.53 | D58: 6008.868367 | E58: 19559.97639 | F58: 78 | G58: 1 | H58: 804.9665184 | I58: 12484 | J58: 21773 | K58: 539118.162 | L58: 605139.4893
B59: October | C59: 781499.0867 | D59: 7601.29445 | E59: 14770.10121 | F59: 98 | G59: 2 | H59: 929.331716 | I59: 14901 | J59: 24425 | K59: 491883.4023 | L59: 590915.988
B60: November | C60: 785899.6738 | D60: 10255.33792 | E60: 12934.43254 | F60: 106 | G60: 2 | H60: 1090.32502 | I60: 15525 | J60: 28254 | K60: 459720.8856 | L60: 552723.4572
B61: December | C61: 979239.8507 | D61: 14916.76883 | E61: 16795.76299 | F61: 115 | G61: 2 | H61: 1766.667258 | I61: 17052 | J61: 31467 | K61: 514762.8152 | L61: 574214.0952
B64: LPL-S > 500 kW PLS | C64: % of | D64: % of
C65: kWh | D65: Gen Obl
C66: 0.3923545423 | D66: 0.3705437234
A70: Table #4 | B70: Forwards Prices - Energy Only @ bulk system | E70: Table #5 | F70: Zone to Western Hub Basis Differential
B71: in $/MWh, not including PJM losses | F71: Off/On Pk
C72: On-Peak | F72: LMP ratio
B73: January | C73: 50.45 | E73: Summer | F73: 0.6327785426
B74: February | C74: 47.55 | E74: Winter | F74: 0.7317701862
B75: March | C75: 35.13
B76: April | C76: 30.38
B77: May | C77: 31.55
B78: June | C78: 33.55 | F78: Basis
B79: July | C79: 41.74 | F79: On-Peak | G79: Off-Peak
B80: August | C80: 37.88 | E80: Summer | F80: 0.935975296 | G80: 0.8766970966
B81: September | C81: 32.12 | E81: Winter | F81: 0.99579792 | G81: 0.9794574996
B82: October | C82: 31
B83: November | C83: 30.88
B84: December | C84: 33.9
A88: Table #6 | B88: Loss Type | C88: Percentage | D88: Source
B89: Delivery Losses | C89: 0.075377 | D89: Tariff (Result of 2000 Loss Study)
B90: EHV Losses | C90: 0.00456 | D90: PJM
B91: Marginal Loss Deration Factor | C91: 0.01076874346 | D91: NERA
A96: Table #10 | B96: Generation & Transmission Obligations and Costs and Other Adjustments
B97: obligations - Peak Load shares eff 6/1/17, scaling factors eff 6/1/17, Transmission Loads eff 1/1/17; costs are market estimates
B98: in MW
C100: RS | D100: RHS | E100: RLM | F100: WH | G100: WHS | H100: HS | I100: PSAL | J100: BPL | K100: GLP | L100: LPL-S
B101: Generation Peak Load Share | C101: 3614.803538 | D101: 23.64369549 | E101: 69.39987694 | F101: 0 | G101: 0 | H101: 2.885073093 | I101: 0 | J101: 0 | K101: 1791.276688 | L101: 1397.516918
B102: Tranmsission Obligation | C102: 3884.308261 | D102: 25.01944228 | E102: 73.09390708 | F102: 0 | G102: 0 | H102: 2.924762926 | I102: 0 | J102: 0 | K102: 1779.505845 | L102: 1369.695111
B104: Final Zonal RPM Scaling Factor | C104: 1.045972134
B105: PJM June 1, 2017 (through May 31, 2018) Forecast Pool Requirement | C105: 1.0967
B107: NITS Rate | D107: Tranches | E107: NITS Rate
C108: 2016 | D108: 28 | E108: 82516.44
C109: 2017 | D109: 28 | E109: 91224.18
C110: 2018 | D110: 29 | E110: 91224.18
E112: Base Capacity
B113: Generation Capacity cost | C113: summer = | E113: 168.4736437 | F113: $/MW/day
C114: winter = | E114: 168.4736437 | F114: $/MW/day
C115: Incremental RPM Capacity | E115: 0 | F115: $/MW/day
C118: RS | D118: RHS
B119: Required summer inversion = | C119: 0.8652 | D119: 1.1569 | E119: ¢/kWh | F119: (same as 2003/2004 BGS blocking inversion)
A122: Table #11 | B122: Ancillary Services & Renewable Power Cost
B123: Ancillary Services | D123: 2 | E123: per MWh @ bulk system
B124: Renewable Power Cost | D124: 8.4 | E124: per MWh @ bulk system
A129: Bill Impacts | B129: BGS - CIEP BRA Clearing Price ($ per MW/Day)
B130: Annual Obligation Clearing Price | D130: 276.83 | E130: per MWh
A135: auction results and rates | B135: Specific BGS-FP Auction >> | C135: remaining portion of 36 month bid - 2016 auction | D135: remaining portion of 36 month bid - 2017 auction | E135: 36 month bid - 2018 auction
B136: Winning Bid - in $/MWh | C136: 96.38 | D136: 90.78 | E136: 90.78
B137: # of Tranches for Bid | C137: 28 | D137: 28 | E137: 29
B139: Payment Factors
B140: Summer | C140: 1 | D140: 1 | E140: 1
B141: Winter | C141: 1 | D141: 1 | E141: 1

Sheet bid_factors
B2: ="Development of BGS-RSCP Cost and Bid Factors for "&(Input!D2)&"/"&(Input!D2+1)&" BGS Filing" -> Development of BGS-RSCP Cost and Bid Factors for /1 BGS Filing
B3: Adjusted to Billing Time Periods
E4: =+Input!E9 -> Based on average of year 2014,2015 & 2016 Load Profile Information
A5: Table #1 | B5: % Usage During PJM On-Peak Period | E5: On-Peak periods defined as the 16 hr PJM Trading period, adj for NERC holidays | O5: % usage during Off-Peak period
C6: Profile Meter Data | D6: Profile Meter Data | E6: Profile Meter Data | F6: Profile Meter Data | G6: Profile Meter Data | H6: Profile Meter Data | I6: --- Other Analysis --- | K6: Profile Meter Data | L6: Profile Meter Data | O6: Profile Meter Data | P6: Profile Meter Data | Q6: Profile Meter Data | R6: Profile Meter Data | S6: Profile Meter Data | T6: Profile Meter Data | U6: -- Other Analysis -- | W6: Profile Meter Data | X6: Profile Meter Data
B7: (data rounded to nearest .01%) | C7: RS | D7: RHS | E7: RLM | F7: WH | G7: WHS | H7: HS | I7: PSAL | J7: BPL | K7: GLP | L7: LPL-S | O7: =+C7 -> RS | P7: =+D7 -> RHS | Q7: RLM | R7: WH | S7: WHS | T7: HS | U7: PSAL | V7: BPL | W7: GLP | X7: LPL-S
B9: January | C9: =Input!C14 -> 0.4757 | D9: =Input!D14 -> 0.469 | E9: =Input!E14 -> 0.4827 | F9: =Input!F14 -> 0.4367 | G9: =Input!G14 -> 0.4367 | H9: =Input!H14 -> 0.4713 | I9: =Input!I14 -> 0.2997 | J9: =Input!J14 -> 0.2997 | K9: =Input!K14 -> 0.556 | L9: =Input!L14 -> 0.537 | O9: =1-C9 -> 0.5243 | P9: 0.531 | Q9: 0.5173 | R9: 0.5633 | S9: 0.5633 | T9: 0.5287 | U9: 0.7003 | V9: 0.7003 | W9: 0.444 | X9: 0.463
B10: February | C10: =Input!C15 -> 0.502 | D10: =Input!D15 -> 0.485 | E10: =Input!E15 -> 0.5093 | F10: =Input!F15 -> 0.4527 | G10: =Input!G15 -> 0.4527 | H10: =Input!H15 -> 0.4853 | I10: =Input!I15 -> 0.2967 | J10: =Input!J15 -> 0.2967 | K10: =Input!K15 -> 0.5733 | L10: =Input!L15 -> 0.5603 | O10: =1-C10 -> 0.498 | P10: =1-D10 -> 0.515 | Q10: =1-E10 -> 0.4907 | R10: =1-F10 -> 0.5473 | S10: =1-G10 -> 0.5473 | T10: =1-H10 -> 0.5147 | U10: =1-I10 -> 0.7033 | V10: =1-J10 -> 0.7033 | W10: =1-K10 -> 0.4267 | X10: =1-L10 -> 0.4397
B11: March | C11: =Input!C16 -> 0.492 | D11: =Input!D16 -> 0.4887 | E11: =Input!E16 -> 0.4993 | F11: =Input!F16 -> 0.464 | G11: =Input!G16 -> 0.464 | H11: =Input!H16 -> 0.4787 | I11: =Input!I16 -> 0.253 | J11: =Input!J16 -> 0.253 | K11: =Input!K16 -> 0.5773 | L11: =Input!L16 -> 0.5627 | O11: 0.508 | P11: 0.5113 | Q11: 0.5007 | R11: 0.536 | S11: 0.536 | T11: 0.5213 | U11: 0.747 | V11: 0.747 | W11: 0.4227 | X11: 0.4373
B12: April | C12: =Input!C17 -> 0.5103 | D12: =Input!D17 -> 0.5183 | E12: =Input!E17 -> 0.5167 | F12: =Input!F17 -> 0.4673 | G12: =Input!G17 -> 0.4673 | H12: =Input!H17 -> 0.5083 | I12: =Input!I17 -> 0.2293 | J12: =Input!J17 -> 0.2293 | K12: =Input!K17 -> 0.595 | L12: =Input!L17 -> 0.5803 | O12: 0.4897 | P12: 0.4817 | Q12: 0.4833 | R12: 0.5327 | S12: 0.5327 | T12: 0.4917 | U12: 0.7707 | V12: 0.7707 | W12: 0.405 | X12: 0.4197
B13: May | C13: =Input!C18 -> 0.468 | D13: =Input!D18 -> 0.4847 | E13: =Input!E18 -> 0.4827 | F13: =Input!F18 -> 0.4203 | G13: =Input!G18 -> 0.4203 | H13: =Input!H18 -> 0.5427 | I13: =Input!I18 -> 0.202 | J13: =Input!J18 -> 0.202 | K13: =Input!K18 -> 0.567 | L13: =Input!L18 -> 0.553 | O13: 0.532 | P13: 0.5153 | Q13: 0.5173 | R13: 0.5797 | S13: 0.5797 | T13: 0.4573 | U13: 0.798 | V13: 0.798 | W13: 0.433 | X13: 0.447
B14: June | C14: =Input!C19 -> 0.5337 | D14: =Input!D19 -> 0.5433 | E14: =Input!E19 -> 0.5543 | F14: =Input!F19 -> 0.469 | G14: =Input!G19 -> 0.469 | H14: =Input!H19 -> 0.6417 | I14: =Input!I19 -> 0.2037 | J14: =Input!J19 -> 0.2037 | K14: =Input!K19 -> 0.6143 | L14: =Input!L19 -> 0.59 | O14: 0.4663 | P14: 0.4567 | Q14: 0.4457 | R14: 0.531 | S14: 0.531 | T14: 0.3583 | U14: 0.7963 | V14: 0.7963 | W14: 0.3857 | X14: 0.41
B15: July | C15: =Input!C20 -> 0.5283 | D15: =Input!D20 -> 0.5353 | E15: =Input!E20 -> 0.5493 | F15: =Input!F20 -> 0.478 | G15: =Input!G20 -> 0.478 | H15: =Input!H20 -> 0.644 | I15: =Input!I20 -> 0.1953 | J15: =Input!J20 -> 0.1953 | K15: =Input!K20 -> 0.6 | L15: =Input!L20 -> 0.567 | O15: 0.4717 | P15: 0.4647 | Q15: 0.4507 | R15: 0.522 | S15: 0.522 | T15: 0.356 | U15: 0.8047 | V15: 0.8047 | W15: 0.4 | X15: 0.433
B16: August | C16: =Input!C21 -> 0.513 | D16: =Input!D21 -> 0.526 | E16: =Input!E21 -> 0.5373 | F16: =Input!F21 -> 0.5037 | G16: =Input!G21 -> 0.5037 | H16: =Input!H21 -> 0.6327 | I16: =Input!I21 -> 0.212 | J16: =Input!J21 -> 0.212 | K16: =Input!K21 -> 0.5953 | L16: =Input!L21 -> 0.5607 | O16: 0.487 | P16: 0.474 | Q16: 0.4627 | R16: 0.4963 | S16: 0.4963 | T16: 0.3673 | U16: 0.788 | V16: 0.788 | W16: 0.4047 | X16: 0.4393
B17: September | C17: =Input!C22 -> 0.502 | D17: =Input!D22 -> 0.5207 | E17: =Input!E22 -> 0.525 | F17: =Input!F22 -> 0.4897 | G17: =Input!G22 -> 0.4897 | H17: =Input!H22 -> 0.631 | I17: =Input!I22 -> 0.2377 | J17: =Input!J22 -> 0.2377 | K17: =Input!K22 -> 0.597 | L17: =Input!L22 -> 0.5683 | O17: 0.498 | P17: 0.4793 | Q17: 0.475 | R17: 0.5103 | S17: 0.5103 | T17: 0.369 | U17: 0.7623 | V17: 0.7623 | W17: 0.403 | X17: 0.4317
B18: October | C18: =Input!C23 -> 0.5007 | D18: =Input!D23 -> 0.5167 | E18: =Input!E23 -> 0.521 | F18: =Input!F23 -> 0.504 | G18: =Input!G23 -> 0.504 | H18: =Input!H23 -> 0.5723 | I18: =Input!I23 -> 0.2697 | J18: =Input!J23 -> 0.2697 | K18: =Input!K23 -> 0.5987 | L18: =Input!L23 -> 0.5767 | O18: 0.4993 | P18: 0.4833 | Q18: 0.479 | R18: 0.496 | S18: 0.496 | T18: 0.4277 | U18: 0.7303 | V18: 0.7303 | W18: 0.4013 | X18: 0.4233
B19: November | C19: =Input!C24 -> 0.4567 | D19: =Input!D24 -> 0.4547 | E19: =Input!E24 -> 0.4797 | F19: =Input!F24 -> 0.424 | G19: =Input!G24 -> 0.424 | H19: =Input!H24 -> 0.4707 | I19: =Input!I24 -> 0.298 | J19: =Input!J24 -> 0.298 | K19: =Input!K24 -> 0.5547 | L19: =Input!L24 -> 0.5333 | O19: 0.5433 | P19: 0.5453 | Q19: 0.5203 | R19: 0.576 | S19: 0.576 | T19: 0.5293 | U19: 0.702 | V19: 0.702 | W19: 0.4453 | X19: 0.4667
B20: December | C20: =Input!C25 -> 0.4923 | D20: =Input!D25 -> 0.4917 | E20: =Input!E25 -> 0.5127 | F20: =Input!F25 -> 0.455 | G20: =Input!G25 -> 0.455 | H20: =Input!H25 -> 0.4973 | I20: =Input!I25 -> 0.318 | J20: =Input!J25 -> 0.318 | K20: =Input!K25 -> 0.574 | L20: =Input!L25 -> 0.5483 | O20: 0.5077 | P20: 0.5083 | Q20: 0.4873 | R20: 0.545 | S20: 0.545 | T20: 0.5027 | U20: 0.682 | V20: 0.682 | W20: 0.426 | X20: 0.4517
E22: =+Input!E9 -> Based on average of year 2014,2015 & 2016 Load Profile Information
A23: Table #2 | B23: % Usage During PSE&G On-Peak Billing Period | E23: On-Peak periods as defined in specified rate schedule (average of %s for 2014, 2015 & 2016)
C24: N/A | D24: N/A | E24: Profile Meter Data | F24: N/A | G24: N/A | H24: N/A | I24: N/A | J24: N/A | K24: N/A | L24: Profile Meter Data | O24: N/A | P24: N/A | Q24: Actual Billed Sales | R24: N/A | S24: N/A | T24: N/A | U24: N/A | V24: N/A | W24: N/A | X24: Actual Billed Sales
B25: (data rounded to nearest .01%) | C25: =+C7 -> RS | D25: =+D7 -> RHS | E25: RLM | F25: WH | G25: WHS | H25: HS | I25: PSAL | J25: BPL | K25: GLP | L25: LPL-S | O25: =+C7 -> RS | P25: =+D7 -> RHS | Q25: RLM | R25: WH | S25: WHS | T25: HS | U25: PSAL | V25: BPL | W25: GLP | X25: LPL-S
B27: January | C27: 0 | D27: 0 | E27: =Input!C32 -> 0.4341 | F27: 0 | G27: 0 | H27: 0 | I27: 0 | J27: 0 | K27: 0 | L27: =Input!D32 -> 0.4846 | Q27: =1-E27 -> 0.5659 | X27: =1-L27 -> 0.5154
B28: February | C28: 0 | D28: 0 | E28: =Input!C33 -> 0.4266 | F28: 0 | G28: 0 | H28: 0 | I28: 0 | J28: 0 | K28: 0 | L28: =Input!D33 -> 0.4825 | Q28: 0.5734 | X28: 0.5175
B29: March | C29: 0 | D29: 0 | E29: =Input!C34 -> 0.4197 | F29: 0 | G29: 0 | H29: 0 | I29: 0 | J29: 0 | K29: 0 | L29: =Input!D34 -> 0.4848 | Q29: 0.5803 | X29: 0.5152
B30: April | C30: 0 | D30: 0 | E30: =Input!C35 -> 0.423 | F30: 0 | G30: 0 | H30: 0 | I30: 0 | J30: 0 | K30: 0 | L30: =Input!D35 -> 0.4902 | Q30: 0.577 | X30: 0.5098
B31: May | C31: 0 | D31: 0 | E31: =Input!C36 -> 0.4402 | F31: 0 | G31: 0 | H31: 0 | I31: 0 | J31: 0 | K31: 0 | L31: =Input!D36 -> 0.5059 | Q31: 0.5598 | X31: 0.4941
B32: June | C32: 0 | D32: 0 | E32: =Input!C37 -> 0.4658 | F32: 0 | G32: 0 | H32: 0 | I32: 0 | J32: 0 | K32: 0 | L32: =Input!D37 -> 0.5117 | Q32: 0.5342 | X32: 0.4883
B33: July | C33: 0 | D33: 0 | E33: =Input!C38 -> 0.4894 | F33: 0 | G33: 0 | H33: 0 | I33: 0 | J33: 0 | K33: 0 | L33: =Input!D38 -> 0.513 | Q33: 0.5106 | X33: 0.487
B34: August | C34: 0 | D34: 0 | E34: =Input!C39 -> 0.4818 | F34: 0 | G34: 0 | H34: 0 | I34: 0 | J34: 0 | K34: 0 | L34: =Input!D39 -> 0.5058 | Q34: 0.5182 | X34: 0.4942
B35: September | C35: 0 | D35: 0 | E35: =Input!C40 -> 0.4848 | F35: 0 | G35: 0 | H35: 0 | I35: 0 | J35: 0 | K35: 0 | L35: =Input!D40 -> 0.5084 | Q35: 0.5152 | X35: 0.4916
B36: October | C36: 0 | D36: 0 | E36: =Input!C41 -> 0.4593 | F36: 0 | G36: 0 | H36: 0 | I36: 0 | J36: 0 | K36: 0 | L36: =Input!D41 -> 0.513 | Q36: 0.5407 | X36: 0.487
B37: November | C37: 0 | D37: 0 | E37: =Input!C42 -> 0.4358 | F37: 0 | G37: 0 | H37: 0 | I37: 0 | J37: 0 | K37: 0 | L37: =Input!D42 -> 0.5039 | Q37: 0.5642 | X37: 0.4961
B38: December | C38: 0 | D38: 0 | E38: =Input!C43 -> 0.4312 | F38: 0 | G38: 0 | H38: 0 | I38: 0 | J38: 0 | K38: 0 | L38: =Input!D43 -> 0.4911 | Q38: 0.5688 | X38: 0.5089
A41: Table #3 | B41: Class Usage @ customer | O41: Usage by season - PSE&G periods
B42: ="calendar month sales forecasted for "&(Input!D2)&", less % for LPL-Sec > 500 kW Peak Load Share" -> calendar month sales forecasted for , less % for LPL-Sec > 500 kW Peak Load Share | L42: < 500 kW | AB42: Total | AD42: LPL-S > 500 kW PLS
B43: in MWh | C43: =+C7 -> RS | D43: =+D7 -> RHS | E43: RLM | F43: WH | G43: WHS | H43: HS | I43: PSAL | J43: BPL | K43: GLP | L43: LPL-S | O43: =+C7 -> RS | P43: =+D7 -> RHS | Q43: RLM | R43: WH | S43: WHS | T43: HS | U43: PSAL | V43: BPL | W43: GLP | X43: LPL-S | Z43: % | AB43: LPL-S | AD43: % of | AE43: % of | AF43: % of
AD44: kWh | AE44: Gen Obl | AF44: Trans Obl
B45: January | C45: =Input!C50 -> 1046226.98 | D45: =Input!D50 -> 20269.48549 | E45: =Input!E50 -> 17920.82019 | F45: =Input!F50 -> 131 | G45: =Input!G50 -> 3 | H45: =Input!H50 -> 2531.598405 | I45: =Input!I50 -> 16433 | J45: =Input!J50 -> 31380 | K45: =Input!K50 -> 540032.4933 | L45: =AB45*$M$45 -> 375551.6252 | M45: =(1-AD45) -> 0.6076454577 | N45: winter MWh = | O45: =SUM(C45:C49,C54:C56) -> 6934164.91 | P45: =SUM(D45:D49,D54:D56) -> 100987.541 | Q45: 121145.7504 | R45: 955 | S45: 20 | T45: 12316.41364 | U45: 114675 | V45: 216935 | W45: 4041752.204 | X45: 2877258.338 | Y45: =SUM(O45:X45) -> 14420210.16 | Z45: =+Y45/(Y45+Y49) -> 0.6036003578 | AB45: =Input!L50 -> 618043.9933 | AD45: =Input!C66 -> 0.3923545423 | AE45: =Input!D66 -> 0.3705437234 | AF45: =AE45 -> 0.3705437234
B46: February | C46: =Input!C51 -> 890995.6637 | D46: =Input!D51 -> 17115.96908 | E46: =Input!E51 -> 14519.57109 | F46: =Input!F51 -> 139 | G46: =Input!G51 -> 3 | H46: =Input!H51 -> 2132.096503 | I46: =Input!I51 -> 14486 | J46: =Input!J51 -> 29833 | K46: =Input!K51 -> 501922.3533 | L46: =AB46*$M$45 -> 365920.0342 | N46: on-peak | Q46: =SUMPRODUCT(E27:E31,E45:E49)+SUMPRODUCT(E36:E38,E54:E56) -> 52537.83823 | X46: =SUMPRODUCT(L27:L31,L45:L49)+SUMPRODUCT(L36:L38,L54:L56) -> 1422570.467 | AB46: =Input!L51 -> 602193.3177
B47: March | C47: =Input!C52 -> 869461.3524 | D47: =Input!D52 -> 15107.63207 | E47: =Input!E52 -> 15191.06632 | F47: =Input!F52 -> 118 | G47: =Input!G52 -> 3 | H47: =Input!H52 -> 2019.656736 | I47: =Input!I52 -> 13475 | J47: =Input!J52 -> 26173 | K47: =Input!K52 -> 520694.9965 | L47: 375136.4942 | N47: off-peak | O47: =+O45-O46 -> 6934164.91 | P47: =+P45-P46 -> 100987.541 | Q47: =+Q45-Q46 -> 68607.91213 | R47: =+R45-R46 -> 955 | X47: =+X45-X46 -> 1454687.872 | AB47: =Input!L52 -> 617360.8137
B48: April | C48: =Input!C53 -> 776635.4764 | D48: =Input!D53 -> 9125.351614 | E48: =Input!E53 -> 14323.05861 | F48: =Input!F53 -> 129 | G48: =Input!G53 -> 3 | H48: =Input!H53 -> 1195.09844 | I48: =Input!I53 -> 12345 | J48: =Input!J53 -> 23503 | K48: =Input!K53 -> 503500.6922 | L48: 335734.531 | AB48: =Input!L53 -> 552517.1409
B49: May | C49: =Input!C54 -> 804206.8256 | D49: =Input!D54 -> 6595.701593 | E49: =Input!E54 -> 14690.93742 | F49: =Input!F54 -> 119 | G49: =Input!G54 -> 2 | H49: =Input!H54 -> 651.6395625 | I49: =Input!I54 -> 10458 | J49: =Input!J54 -> 21900 | K49: =Input!K54 -> 509234.5652 | L49: 381069.7529 | N49: summer MWh = | O49: =SUM(C50:C53) -> 5249094.786 | P49: =+SUM(D50:D53) -> 29795.55494 | Q49: 96990.54858 | R49: 328 | S49: 7 | T49: 3424.302015 | U49: 44293 | V49: 79333 | W49: 2378632.39 | X49: 1588218.647 | Y49: =SUM(O49:X49) -> 9470117.228 | Z49: =1-Z45 -> 0.3963996422 | AB49: =Input!L54 -> 627125.1568
B50: June | C50: =Input!C55 -> 1185203.944 | D50: =Input!D55 -> 7215.76971 | E50: =Input!E55 -> 22053.17022 | F50: =Input!F55 -> 93 | G50: =Input!G55 -> 3 | H50: =Input!H55 -> 900.3699577 | I50: =Input!I55 -> 10264 | J50: =Input!J55 -> 18101 | K50: =Input!K55 -> 551415.7144 | L50: 368574.034 | N50: on-peak | Q50: =+SUMPRODUCT(E32:E35,E50:E53) -> 46660.08377 | X50: =+SUMPRODUCT(L32:L35,L50:L53) -> 809528.5276 | AB50: =Input!L55 -> 606560.996
B51: July | C51: =Input!C56 -> 1578158.448 | D51: =Input!D56 -> 8472.048605 | E51: =Input!E56 -> 29501.08619 | F51: =Input!F56 -> 79 | G51: =Input!G56 -> 1 | H51: =Input!H56 -> 895.2590591 | I51: =Input!I56 -> 10333 | J51: =Input!J56 -> 18677 | K51: =Input!K56 -> 652821.9604 | L51: 427347.5943 | N51: off-peak | Q51: =+Q49-Q50 -> 50330.46482 | X51: =+X49-X50 -> 778690.119 | AB51: =Input!L56 -> 703284.4381
B52: August | C52: =Input!C57 -> 1468970.864 | D52: =Input!D57 -> 8098.868253 | E52: =Input!E57 -> 25876.31578 | F52: =Input!F57 -> 78 | G52: =Input!G57 -> 2 | H52: =Input!H57 -> 823.7064797 | I52: =Input!I57 -> 11212 | J52: =Input!J57 -> 20782 | K52: =Input!K57 -> 635276.5529 | L52: 424586.7564 | AB52: =Input!L57 -> 698740.9368
B53: September | C53: =Input!C58 -> 1016761.53 | D53: =Input!D58 -> 6008.868367 | E53: =Input!E58 -> 19559.97639 | F53: =Input!F58 -> 78 | G53: =Input!G58 -> 1 | H53: =Input!H58 -> 804.9665184 | I53: =Input!I58 -> 12484 | J53: =Input!J58 -> 21773 | K53: =Input!K58 -> 539118.162 | L53: 367710.2619 | N53: Block 1 | O53: =+O49*C163 -> 3396164.327 | P53: =+P49*D163 -> 18860.58627 | AB53: =Input!L58 -> 605139.4893
B54: October | C54: =Input!C59 -> 781499.0867 | D54: =Input!D59 -> 7601.29445 | E54: =Input!E59 -> 14770.10121 | F54: =Input!F59 -> 98 | G54: =Input!G59 -> 2 | H54: =Input!H59 -> 929.331716 | I54: =Input!I59 -> 14901 | J54: =Input!J59 -> 24425 | K54: =Input!K59 -> 491883.4023 | L54: 359067.416 | N54: Block 2 | O54: =+O49-O53 -> 1852930.46 | P54: =+P49-P53 -> 10934.96866 | AB54: =Input!L59 -> 590915.988
B55: November | C55: =Input!C60 -> 785899.6738 | D55: =Input!D60 -> 10255.33792 | E55: =Input!E60 -> 12934.43254 | F55: =Input!F60 -> 106 | G55: =Input!G60 -> 2 | H55: =Input!H60 -> 1090.32502 | I55: =Input!I60 -> 15525 | J55: =Input!J60 -> 28254 | K55: =Input!K60 -> 459720.8856 | L55: 335859.8982 | AB55: =Input!L60 -> 552723.4572
B56: December | C56: =Input!C61 -> 979239.8507 | D56: =Input!D61 -> 14916.76883 | E56: =Input!E61 -> 16795.76299 | F56: =Input!F61 -> 115 | G56: =Input!G61 -> 2 | H56: =Input!H61 -> 1766.667258 | I56: =Input!I61 -> 17052 | J56: =Input!J61 -> 31467 | K56: =Input!K61 -> 514762.8152 | L56: 348918.5867 | AB56: =Input!L61 -> 574214.0952
B57: Total | C57: =SUM(C45:C56) -> 12183259.7 | D57: =SUM(D45:D56) -> 130783.096 | E57: =SUM(E45:E56) -> 218136.2989 | F57: 1283 | G57: 27 | H57: =SUM(H45:H56) -> 15740.71566 | I57: =SUM(I45:I56) -> 158968 | J57: =SUM(J45:J56) -> 296268 | K57: 6420384.593 | L57: =SUM(L45:L56) -> 4465476.985 | O57: Usage by season/period - PJM periods | AB57: =SUM(AB45:AB56) -> 7348819.823
O58: in MWhs
Y59: Total | Z59: %
A60: Table #4 | B60: Forwards Prices - Energy Only @ bulk system | G60: Table #5 | H60: Zone to Western Hub Basis Differential | N60: Winter
B61: in $/MWh, not including PJM losses | D61: Off/On Pk | E61: Resulting | N61: on-peak | O61: =SUMPRODUCT(C9:C13,C45:C49)+SUMPRODUCT(C18:C20,C54:C56) -> 3377727.613 | P61: =SUMPRODUCT(D9:D13,D45:D49)+SUMPRODUCT(D18:D20,D54:D56) -> 49042.60602 | Q61: 60633.19445 | R61: 431.8434 | S61: 9.0687 | T61: 6079.407924 | U61: 31643.1515 | V61: 59704.4645 | W61: 2321897.907 | X61: 1600844.168 | Y61: =SUM(O61:X61) -> 7508013.426 | Z61: =+Y61/(Y61+Y62) -> 0.520659085
C62: On-Peak | D62: LMP ratio | E62: Off-Peak | H62: On-Peak | I62: Off-Peak | N62: off-peak | O62: =+O45-O61 -> 3556437.296 | P62: =+P45-P61 -> 51944.93502 | Q62: 60512.55591 | R62: 523.1566 | S62: 10.9313 | T62: 6237.005717 | U62: 83031.8485 | V62: 157230.5355 | W62: 1719854.296 | X62: 1276414.17 | Y62: =SUM(O62:X62) -> 6912196.731 | Z62: =1-Z61 -> 0.479340915
B63: January | C63: =Input!C73 -> 50.45 | D63: =Input!F74 -> 0.7317701862 | E63: =ROUND(+C63*D63,3) -> 36.918 | H63: =Input!F81 -> 0.99579792 | I63: =Input!G81 -> 0.9794574996 | J63: NYMEX Forwards (June 1, 2017) from NERA
B64: February | C64: =Input!C74 -> 47.55 | D64: =+$D$63 -> 0.7317701862 | E64: =ROUND(+C64*D64,3) -> 34.796 | H64: =+$H$63 -> 0.99579792 | I64: =+$I$63 -> 0.9794574996 | N64: Summer
B65: March | C65: =Input!C75 -> 35.13 | D65: =+$D$63 -> 0.7317701862 | E65: =ROUND(+C65*D65,3) -> 25.707 | H65: =+$H$63 -> 0.99579792 | I65: =+$I$63 -> 0.9794574996 | J65: Congestion Factors & On/Off Peak Ratios | N65: on-peak | O65: =SUMPRODUCT(C14:C17,C50:C53) -> 2730280.794 | P65: =SUMPRODUCT(D14:D17,D50:D53) -> 15844.23776 | Q65: 52601.35097 | R65: 158.8642 | S65: 3.3821 | T65: 2183.407199 | U65: 9453.2025 | V65: 16916.0179 | W65: 1430461.524 | X65: 906800.3022 | Y65: 5164703.084 | Z65: =+Y65/(Y65+Y66) -> 0.5453684426
B66: April | C66: =Input!C76 -> 30.38 | D66: =+$D$63 -> 0.7317701862 | E66: 22.231 | H66: =+$H$63 -> 0.99579792 | I66: =+$I$63 -> 0.9794574996 | J66: Averages for Mar 2014-Feb 2017 | N66: off-peak | O66: =+O49-O65 -> 2518813.992 | P66: =+P49-P65 -> 13951.31717 | Q66: 44389.19761 | R66: 169.1358 | S66: 3.6179 | T66: 1240.894816 | U66: 34839.7975 | V66: 62416.9821 | W66: 948170.8655 | X66: 681418.3444 | Y66: 4305414.145 | Z66: =1-Z65 -> 0.4546315574
B67: May | C67: =Input!C77 -> 31.55 | D67: =+$D$63 -> 0.7317701862 | E67: 23.087 | H67: =+$H$63 -> 0.99579792 | I67: =+$I$63 -> 0.9794574996
B68: June | C68: =Input!C78 -> 33.55 | D68: =Input!F73 -> 0.6327785426 | E68: 21.23 | H68: =Input!F80 -> 0.935975296 | I68: =Input!G80 -> 0.8766970966 | N68: Total on-peak | O68: =+O61+O65 -> 6108008.408 | P68: =+P61+P65 -> 64886.84378 | Q68: 113234.5454 | R68: 590.7076 | S68: 12.4508 | T68: 8262.815122 | U68: 41096.354 | V68: 76620.4824 | W68: 3752359.432 | X68: 2507644.471 | Y68: 12672716.51 | Z68: =+Y68/(Y68+Y69) -> 0.5304538655
B69: July | C69: =Input!C79 -> 41.74 | D69: =+$D$68 -> 0.6327785426 | E69: 26.412 | H69: =+$H$68 -> 0.935975296 | I69: =+$I$68 -> 0.8766970966 | N69: Total off-peak | O69: =+O62+O66 -> 6075251.288 | P69: =+P62+P66 -> 65896.2522 | Q69: 104901.7535 | R69: 692.2924 | S69: 14.5492 | T69: 7477.900533 | U69: 117871.646 | V69: 219647.5176 | W69: 2668025.162 | X69: 1957832.514 | Y69: 11217610.88 | Z69: =1-Z68 -> 0.4695461345
B70: August | C70: =Input!C80 -> 37.88 | D70: =+$D$68 -> 0.6327785426 | E70: 23.97 | H70: =+$H$68 -> 0.935975296 | I70: =+$I$68 -> 0.8766970966
B71: September | C71: =Input!C81 -> 32.12 | D71: =+$D$68 -> 0.6327785426 | E71: 20.325 | H71: =+$H$68 -> 0.935975296 | I71: =+$I$68 -> 0.8766970966
B72: October | C72: =Input!C82 -> 31 | D72: =+$D$63 -> 0.7317701862 | E72: 22.685 | H72: =+$H$63 -> 0.99579792 | I72: =+$I$63 -> 0.9794574996
B73: November | C73: =Input!C83 -> 30.88 | D73: =+$D$63 -> 0.7317701862 | E73: 22.597 | H73: =+$H$63 -> 0.99579792 | I73: =+$I$63 -> 0.9794574996
B74: December | C74: =Input!C84 -> 33.9 | D74: =+$D$63 -> 0.7317701862 | E74: 24.807 | H74: =+$H$63 -> 0.99579792 | I74: =+$I$63 -> 0.9794574996
A77: Table #6 | B77: Losses | C77: =+C7 -> RS | D77: =+D7 -> RHS | E77: RLM | F77: WH | G77: WHS | H77: HS | I77: PSAL | J77: BPL | K77: GLP | L77: LPL-S | P77: Loss Type | Q77: Percentage | R77: Source
B78: from meter to bulk system (includes Delivery & PJM EHV losses) | P78: Delivery Losses | Q78: =Input!C89 -> 0.075377 | R78: Tariff (Result of 2000 Loss Study)
B79: Loss Factors = | C79: =1-((1-$Q$78)*(1-$Q$79)) -> 0.07959328088 | D79: =+$C79 -> 0.07959328088 | E79: =+$C79 -> 0.07959328088 | F79: 0.07959328088 | G79: 0.07959328088 | H79: 0.07959328088 | I79: 0.07959328088 | J79: 0.07959328088 | K79: 0.07959328088 | L79: 0.07959328088 | P79: EHV Losses | Q79: =Input!C90 -> 0.00456 | R79: PJM
B80: Expansion Factor = | C80: =ROUND(1/(1-C79),6) -> 1.086476 | D80: =ROUND(1/(1-D79),6) -> 1.086476 | E80: 1.086476 | F80: 1.086476 | G80: 1.086476 | H80: 1.086476 | I80: 1.086476 | J80: 1.086476 | K80: 1.086476 | L80: 1.086476 | P80: Marginal Loss Deration Factor | Q80: =+Input!C91 -> 0.01076874346 | R80: NERA
B81: 1 / Expansion Factor = | C81: =1/C80 -> 0.9204068935 | D81: =1/D80 -> 0.9204068935 | E81: 0.9204068935 | F81: 0.9204068935 | G81: 0.9204068935 | H81: 0.9204068935 | I81: 0.9204068935 | J81: 0.9204068935 | K81: 0.9204068935 | L81: 0.9204068935 | P81: Marginal Loss Factor | Q81: =ROUND(1-((1-Q80)/(1-Q79)),7) -> 0.0062372
B83: from meter to transmission node (includes Delivery less mean hourly PJM marginal losses)
B84: Loss Factors = | C84: =1-((1-$Q$78)/((1-$Q$80)/(1-$Q$79))) -> 0.06957375939 | D84: =+$C84 -> 0.06957375939 | E84: =+$C84 -> 0.06957375939 | F84: 0.06957375939 | G84: 0.06957375939 | H84: 0.06957375939 | I84: 0.06957375939 | J84: 0.06957375939 | K84: 0.06957375939 | L84: 0.06957375939
B85: Expansion Factor = | C85: =ROUND(1/(1-C84),6) -> 1.074776 | D85: =+$C$85 -> 1.074776 | E85: =+$C$85 -> 1.074776 | F85: 1.074776 | G85: 1.074776 | H85: 1.074776 | I85: 1.074776 | J85: 1.074776 | K85: 1.074776 | L85: 1.074776
B86: 1 / Expansion Factor = | C86: =1/C85 -> 0.930426433 | D86: =1/D85 -> 0.930426433 | E86: 0.930426433 | F86: 0.930426433 | G86: 0.930426433 | H86: 0.930426433 | I86: 0.930426433 | J86: 0.930426433 | K86: 0.930426433 | L86: 0.930426433
A89: Table #7 | B89: Summary of Average BGS Energy Only Unit Costs @ customer - PJM Time Periods
B90: based on Forwards prices corrected for congestion & all losses - PJM time periods
B91: in $/MWh
C92: =+C7 -> RS | D92: =+D7 -> RHS | E92: RLM | F92: WH | G92: WHS | H92: HS | I92: PSAL | J92: BPL | K92: GLP | L92: LPL-S
B94: Summer - all hrs | C94: =(SUMPRODUCT(C14:C17,C50:C53,$C68:$C71,$H68:$H71)*C80+SUMPRODUCT(O14:O17,C50:C53,$E68:$E71,$I68:$I71)*C80)/SUM(C50:C53) -> 30.23569657 | D94: 30.26067492 | E94: 30.54290222 | F94: 29.09298371 | G94: 28.71159348 | H94: 31.55391449 | I94: 24.96778071 | J94: 25.01083455 | K94: 31.19838685 | L94: 30.69035315
B95: PJM on pk | C95: =(SUMPRODUCT(C14:C17,C50:C53,$C68:$C71,$H68:$H71)*C80)/SUMPRODUCT(C14:C17,C50:C53) -> 37.60423701 | D95: 37.39808485 | E95: 37.56321967 | F95: 36.83650292 | G95: 36.39558352 | H95: 37.02942582 | I95: 36.5461145 | J95: 36.61529593 | K95: 37.23495145 | L95: 37.16384071
B96: PJM off pk | C96: =(SUMPRODUCT(O14:O17,C50:C53,$E68:$E71,$I68:$I71)*C80)/SUMPRODUCT(O14:O17,C50:C53) -> 22.24853098 | D96: 22.1548582 | E96: 22.22380204 | F96: 21.81972765 | G96: 21.52841465 | H96: 21.91951945 | I96: 21.82619144 | J96: 21.86583667 | K96: 22.09130108 | L96: 22.0757326
B98: Winter - all hrs | C98: =(SUMPRODUCT(C9:C13,C45:C49,$C63:$C67,$H63:$H67)*C80+SUMPRODUCT(O9:O13,C45:C49,$E63:$E67,$I63:$I67)*C80+SUMPRODUCT(C18:C20,C54:C56,$C72:$C74,$H72:$H74)*C80+SUMPRODUCT(O18:O20,C54:C56,$E72:$E74,$I72:$I74)*C80)/SUM(C45:C49,C54:C56) -> 34.24877913 | D98: 35.83636096 | E98: 34.19551782 | F98: 33.7899514 | G98: 34.12295071 | H98: 36.0905639 | I98: 31.7375045 | J98: 31.92111483 | K98: 34.79750188 | L98: 34.58669032
B99: PJM on pk | C99: =(SUMPRODUCT(C9:C13,C45:C49,$C63:$C67,$H63:$H67)*C80+SUMPRODUCT(C18:C20,C54:C56,$C72:$C74,$H72:$H74)*C80)/(SUMPRODUCT(C9:C13,C45:C49)+SUMPRODUCT(C18:C20,C54:C56)) -> 39.99838611 | D99: 41.75269931 | E99: 39.70415776 | F99: 39.84442379 | G99: 40.20071295 | H99: 41.83730224 | I99: 40.22628003 | J99: 40.49517183 | K99: 39.43040931 | L99: 39.42975141
B100: PJM off pk | C100: =(SUMPRODUCT(O9:O13,C45:C49,$E63:$E67,$I63:$I67)*C80+SUMPRODUCT(O18:O20,C54:C56,$E72:$E74,$I72:$I74)*C80)/(SUMPRODUCT(O9:O13,C45:C49)+SUMPRODUCT(O18:O20,C54:C56)) -> 28.78808781 | D100: 30.25058728 | E100: 28.67589579 | F100: 28.79224337 | G100: 29.08078716 | H100: 30.48903519 | I100: 28.50246138 | J100: 28.66532562 | K100: 28.54282201 | L100: 28.51265393
B102: Annual | C102: =(C94*SUM(C50:C53)+C98*SUM(C45:C49,C54:C56))/C57 -> 32.51976315 | D102: 34.56608472 | E102: 32.5714452 | F102: 32.58916777 | G102: 32.72000624 | H102: 35.10364196 | I102: 29.85126717 | J102: 30.07071835 | K102: 33.46409709 | L102: 33.20089539
B104: System Total | C104: =SUMPRODUCT(C102:L102,C57:L57)/SUM(C57:L57) -> 32.86611474
A107: Table #8 | B107: Summary of Average BGS Energy Only Costs @ customer - PJM Time Periods
B108: based on Forwards prices corrected for congestion & all losses
B109: in $1000
C110: =+C7 -> RS | D110: =+D7 -> RHS | E110: RLM | F110: WH | G110: WHS | H110: HS | I110: PSAL | J110: BPL | K110: GLP | L110: LPL-S
B112: Summer - all hrs | C112: =SUM(C50:C53)*C94/1000 -> 158710.0372 | D112: 901.6336019 | E112: 2962.372842 | F112: 9.542498658 | G112: 0.2009811544 | H112: 108.050133 | I112: 1105.897911 | J112: 1984.184538 | K112: 74209.49347 | L112: 48742.99115
B113: PJM on pk | C113: =SUMPRODUCT(C50:C53,C14:C17)*C95/1000 -> 102670.1261 | D113: 592.5441483 | E113: 1975.876101 | F113: 5.852001566 | G113: 0.123093503 | H113: 80.8503149 | I113: 345.477821 | J113: 619.3850013 | K113: 53263.1654 | L113: 33700.18198
B114: PJM off pk | C114: =SUMPRODUCT(C50:C53,O14:O17)*C96/1000 -> 56039.91114 | D114: 309.0894537 | E114: 986.4967405 | F114: 3.690497092 | G114: 0.07788765135 | H114: 27.19981806 | I114: 760.4200898 | J114: 1364.799536 | K114: 20946.32807 | L114: 15042.80916
B116: Winter - all hrs | C116: =SUM(C45:C49,C54:C56)*C98/1000 -> 237486.6824 | D116: 3619.025973 | E116: 4142.641665 | F116: 32.26940359 | G116: 0.6824590141 | H116: 444.5063136 | I116: 3639.498329 | J116: 6924.807046 | K116: 140642.8799 | L116: 99514.84311
B117: PJM on pk | C117: =(SUMPRODUCT(C45:C49,C9:C13)+SUMPRODUCT(C54:C56,C18:C20))*C99/1000 -> 135103.6533 | D117: 2047.661183 | E117: 2407.389918 | F117: 17.20655144 | G117: 0.3645682055 | H117: 254.3460268 | I117: 1272.886273 | J117: 2417.742549 | K117: 91553.38485 | L117: 63120.88761
B118: PJM off pk | C118: =+(SUMPRODUCT(C45:C49,O9:O13)+SUMPRODUCT(C54:C56,O18:O20))*C100/1000 -> 102383.0292 | D118: 1571.364791 | E118: 1735.251747 | F118: 15.06285215 | G118: 0.3178908086 | H118: 190.1602868 | I118: 2366.612055 | J118: 4507.064497 | K118: 49089.49507 | L118: 36393.9555
B120: Annual | C120: =+C112+C116 -> 396196.7197 | D120: =+D112+D116 -> 4520.659575 | E120: 7105.014507 | F120: 41.81190225 | G120: 0.8834401685 | H120: 552.5564465 | I120: 4745.396239 | J120: 8908.991584 | K120: 214852.3734 | L120: 148257.8343
B122: System Total | C122: =SUM(C120:L120) -> 785182.241
A125: Table #9 | B125: Summary of Average BGS Energy Only Unit Costs @ customer - PSE&G Time Periods | Q125: MWhs in PSE&G time periods | T125: MWhs in PJM time periods | W125: Difference in MWhs | Z125: Check on total $ recovered
B126: based on Forwards prices corrected for congestion & all losses - PSE&G billing time periods | W126: (PJM - PSE&G) | Z126: PSE&G time periods | AC126: PJM time periods (Table #8)
B127: in $/MWh
C128: =+C7 -> RS | D128: =+D7 -> RHS | E128: RLM | F128: WH | G128: WHS | H128: HS | I128: PSAL | J128: BPL | K128: GLP | L128: LPL-S | Q128: =+E128 -> RLM | R128: =+L128 -> LPL-S | T128: =+E128 -> RLM | U128: =+L128 -> LPL-S | W128: =+E128 -> RLM | X128: =+L128 -> LPL-S | Z128: =+E128 -> RLM | AA128: =+L128 -> LPL-S | AC128: =+E128 -> RLM | AD128: =+L128 -> LPL-S
B130: Summer - all hrs | C130: =+C112/SUM(C50:C53)*1000 -> 30.23569657 | D130: 30.26067492 | E130: 30.54290222 | F130: 29.09298371 | G130: 28.71159348 | H130: 31.55391449 | I130: 24.96778071 | J130: 25.01083455 | K130: 31.19838685 | L130: 30.69035315
B131: PSE&G On pk | E131: =+(E113*1000-W131*AVERAGE(E$95,E$96))/Q131 -> 38.53981006 | L131: =+(L113*1000-X131*AVERAGE(L$95,L$96))/R131 -> 38.07032331 | Q131: =SUMPRODUCT(E50:E53,E32:E35) -> 46660.08377 | R131: =SUMPRODUCT(L50:L53,L32:L35) -> 809528.5276 | T131: =SUMPRODUCT(E50:E53,E14:E17) -> 52601.35097 | U131: =SUMPRODUCT(L50:L53,L14:L17) -> 906800.3022 | W131: =+T131-Q131 -> 5941.267204 | X131: =+U131-R131 -> 97271.77457 | Z131: =+E131*Q131/1000 -> 1798.270766 | AA131: =+L131*R131/1000 -> 30819.01277
B132: PSE&G Off pk | E132: =+(E114*1000-W132*AVERAGE(E$95,E$96))/Q132 -> 23.12917396 | L132: =+(L114*1000-X132*AVERAGE(L$95,L$96))/R132 -> 23.01811457 | Q132: =SUMPRODUCT(E50:E53,Q32:Q35) -> 50330.46482 | R132: =SUMPRODUCT(L50:L53,X32:X35) -> 778690.119 | T132: =SUMPRODUCT(E50:E53,Q14:Q17) -> 44389.19761 | U132: =SUMPRODUCT(L50:L53,X14:X17) -> 681418.3444 | W132: =+T132-Q132 -> -5941.267204 | X132: =+U132-R132 -> -97271.77457 | Z132: =+E132*Q132/1000 -> 1164.102076 | AA132: =+L132*R132/1000 -> 17923.97837
Z133: =+Z132+Z131 -> 2962.372842 | AA133: =+AA132+AA131 -> 48742.99115 | AC133: =+E112 -> 2962.372842 | AD133: =+L112 -> 48742.99115
B134: Winter - all hrs | C134: =+C116/SUM(C45:C49,C54:C56)*1000 -> 34.24877913 | D134: 35.83636096 | E134: 34.19551782 | F134: 33.7899514 | G134: 34.12295071 | H134: 36.0905639 | I134: 31.7375045 | J134: 31.92111483 | K134: 34.79750188 | L134: 34.58669032
B135: PSE&G On pk | E135: =+(E117*1000-W135*AVERAGE(E$99,E$100))/Q135 -> 40.55380928 | L135: =+(L117*1000-X135*AVERAGE(L$99,L$100))/R135 -> 40.11380588 | Q135: =SUMPRODUCT(E45:E49,E27:E31)+SUMPRODUCT(E54:E56,E36:E38) -> 52537.83823 | R135: =SUMPRODUCT(L45:L49,L27:L31)+SUMPRODUCT(L54:L56,L36:L38) -> 1422570.467 | T135: =SUMPRODUCT(E45:E49,E9:E13)+SUMPRODUCT(E54:E56,E18:E20) -> 60633.19445 | U135: =SUMPRODUCT(L45:L49,L9:L13)+SUMPRODUCT(L54:L56,L18:L20) -> 1600844.168 | W135: =+T135-Q135 -> 8095.356218 | X135: =+U135-R135 -> 178273.7019 | Z135: =+E135*Q135/1000 -> 2130.609472 | AA135: =+L135*R135/1000 -> 57064.71555
B136: PSE&G Off pk | E136: =+(E118*1000-W136*AVERAGE(E$99,E$100))/Q136 -> 29.32653291 | L136: =+(L118*1000-X136*AVERAGE(L$99,L$100))/R136 -> 29.18160547 | Q136: =SUMPRODUCT(E45:E49,Q27:Q31)+SUMPRODUCT(E54:E56,Q36:Q38) -> 68607.91213 | R136: =SUMPRODUCT(L45:L49,X27:X31)+SUMPRODUCT(L54:L56,X36:X38) -> 1454687.872 | T136: =SUMPRODUCT(E45:E49,Q9:Q13)+SUMPRODUCT(E54:E56,Q18:Q20) -> 60512.55591 | U136: =SUMPRODUCT(L45:L49,X9:X13)+SUMPRODUCT(L54:L56,X18:X20) -> 1276414.17 | W136: =+T136-Q136 -> -8095.356218 | X136: =+U136-R136 -> -178273.7019 | Z136: =+E136*Q136/1000 -> 2012.032193 | AA136: =+L136*R136/1000 -> 42450.12756
Z137: =+Z136+Z135 -> 4142.641665 | AA137: =+AA136+AA135 -> 99514.84311 | AC137: =+E116 -> 4142.641665 | AD137: =+L116 -> 99514.84311
B138: Annual Average | C138: =(C130*SUM(C50:C53)+C134*SUM(C45:C49,C54:C56))/C57 -> 32.51976315 | D138: 34.56608472 | E138: 32.5714452 | F138: 32.58916777 | G138: 32.72000624 | H138: 35.10364196 | I138: 29.85126717 | J138: 30.07071835 | K138: 33.46409709 | L138: 33.20089539
B139: System Average | C139: =+C122/SUM(C57:L57)*1000 -> 32.86611474
A142: Table #10 | B142: Generation & Transmission Obligations and Costs and Other Adjustments | L142: Adj for PLS
B143: obligations - Peak Load shares eff 6/1/17, scaling factors eff 1/1/17, Transmission Loads eff 1/1/17; costs are market estimates | L143: > 500 kW
B144: in MW | C144: =+C7 -> RS | D144: =+D7 -> RHS | E144: RLM | F144: WH | G144: WHS | H144: HS | I144: PSAL | J144: BPL | K144: GLP | L144: LPL-S | AD144: RS | AE144: RHS | AF144: RLM | AG144: WH | AH144: WHS | AI144: HS | AJ144: PSAL | AK144: BPL | AL144: GLP | AM144: LPL-S
R145: NITS Rate Weighted Average Calculation | AC145: Generation Peak Load Share | AD145: =Input!C101 -> 3614.803538 | AE145: =Input!D101 -> 23.64369549 | AF145: =Input!E101 -> 69.39987694 | AG145: =Input!F101 -> 0 | AH145: =Input!G101 -> 0 | AI145: =Input!H101 -> 2.885073093 | AJ145: =Input!I101 -> 0 | AK145: =Input!J101 -> 0 | AL145: =Input!K101 -> 1791.276688 | AM145: =Input!L101 -> 1397.516918
T146: Tranches | U146: NITS Rate | AC146: Tranmsission Obligation | AD146: =Input!C102 -> 3884.308261 | AE146: =Input!D102 -> 25.01944228 | AF146: =Input!E102 -> 73.09390708 | AG146: =Input!F102 -> 0 | AH146: =Input!G102 -> 0 | AI146: =Input!H102 -> 2.924762926 | AJ146: =Input!I102 -> 0 | AK146: =Input!J102 -> 0 | AL146: =Input!K102 -> 1779.505845 | AM146: =Input!L102 -> 1369.695111
B147: Gen Obl - MW | C147: =ROUND(AD145*$AD$148*$AD$149,1) -> 4146.6 | D147: =ROUND(AE145*$AD$148*$AD$149,1) -> 27.1 | E147: 79.6 | F147: 0 | G147: 0 | H147: 3.3 | I147: 0 | J147: 0 | K147: 2054.8 | L147: =ROUND(AM145*$AD$148*$AD$149*(1-AE45),1) -> 1009.1 | R147: =Input!C108 -> 2016 | S147: NITS Rate | T147: =Input!D108 -> 28 | U147: =Input!E108 -> 82516.44 | V147: =U147/$T$150*T147 -> 27181.88612
R148: =Input!C109 -> 2017 | S148: NITS Rate | T148: =Input!D109 -> 28 | U148: =Input!E109 -> 91224.18 | V148: =U148/$T$150*T148 -> 30050.31812 | AC148: Final Zonal RPM Scaling Factor | AD148: =Input!C104 -> 1.045972134
B149: Trans Obl - MW | C149: =ROUND(AD146,1) -> 3884.3 | D149: =ROUND(AE146,1) -> 25 | E149: 73.1 | F149: 0 | G149: 0 | H149: 2.9 | I149: 0 | J149: 0 | K149: 1779.5 | L149: =ROUND(AM146*(1-AF45),1) -> 862.2 | R149: =Input!C110 -> 2018 | S149: NITS Rate | T149: =Input!D110 -> 29 | U149: =Input!E110 -> 91224.18 | V149: =U149/$T$150*T149 -> 31123.54376 | X149: =+Input!B105 -> PJM June 1, 2017 (through May 31, 2018) Forecast Pool Requirement | AD149: =Input!C105 -> 1.0967
T150: =SUM(T147:T149) -> 85 | V150: =ROUND(SUM(V147:V149),2) -> 88355.75
B151: # of Months and Days used in this analysis
D152: # of summer days = | E152: 122 | G152: # of summer months = | H152: 4
D153: # of winter days = | E153: 243 | G153: # of winter months = | H153: 8
G154: total # months = | H154: =+H152+H153 -> 12
B155: Transmission Cost | C155: year round = | D155: =V150 -> 88355.75 | E155: per MW-yr
D157: Base Capacity | E157: Incremental RPM Capacity | F157: Total Capacity
B158: Generation Capacity cost | C158: summer = | D158: =Input!E113 -> 168.4736437 | E158: 0 | F158: =SUM(D158:E158) -> 168.4736437 | G158: $/MW/day
C159: winter = | D159: =Input!E114 -> 168.4736437 | E159: =E158 -> 0 | F159: =SUM(D159:E159) -> 168.4736437 | G159: $/MW/day | Q159: Resulting average generation capacity cost =
P160: annual >> | Q160: =(F158*E152+F159*E153)/1000 -> 61.49287994 | R160: per kW/yr
C161: =+C7 -> RS | D161: =+D7 -> RHS
B162: % usage in Summer Blocks
B163: Block 1 (0-600 kWh/m) | C163: =ROUND(Q165/Q167,3) -> 0.647 | D163: =ROUND(R165/R167,3) -> 0.633 | F163: (based on W/N actuals used in settlement and final rate design of 2009 Rate Case, rounded to .1%) | P163: Blocking Percentages based on Annualized W/N Usaeg Used in 2009 Electric Rate Case Settlement
B164: Block 2 (>600 kWh/m) | C164: =1-C163 -> 0.353 | D164: =1-D163 -> 0.367 | Q164: RS | R164: RHS
P165: June - September (0-600) | Q165: 3626859 | R165: 27006
B166: Required summer inversion = | C166: =Input!C119 -> 0.8652 | D166: =Input!D119 -> 1.1569 | E166: ¢/kWh | F166: (same as 2003/2004 BGS blocking inversion) | P166: June - September (600+) | Q166: 1975894 | R166: 15667
P167: Total Summer Usage | Q167: =SUM(Q165:Q166) -> 5602753 | R167: =SUM(R165:R166) -> 42673
A168: Table #11 | B168: Ancillary Services & Renewable Power Cost
B169: Ancillary Services | D169: =+Input!D123 -> 2
B170: Renewable Power Cost | D170: =+Input!D124 -> 8.4
B171: Total AncillaryServices & Renewable Power Costs | D171: =SUM(D169:D170) -> 10.4 | E171: per MWh @ bulk system
A174: Table #12 | B174: Summary of Obligation Costs Expressed as $/MWh @ customer (for non-demand rates only)
C176: =+C7 -> RS | D176: RHS | E176: RLM | F176: WH | G176: WHS | H176: HS | I176: PSAL | J176: BPL
B178: Transmission Obl - all months | C178: =(+$D$155*C149*$H$154/12)/C57 -> 28.16982058 | D178: =(+$D$155*D149*$H$154/12)/D57 -> 16.88974965 | E178: =(+$D$155*E149*$H$154/12)/SUMPRODUCT(E27:E38,E45:E56) -> 65.11028855 | F178: =(+$D$155*F149*$H$154/12)/F57 -> 0 | G178: =(+$D$155*G149*$H$154/12)/G57 -> 0 | H178: =(+$D$155*H149*$H$154/12)/H57 -> 16.27827353 | I178: =(+$D$155*I149*$H$154/12)/I57 -> 0 | J178: =(+$D$155*J149*$H$154/12)/J57 -> 0
B180: Generation Obl -
B181: per annual MWh | C181: =((+$Q$160*C147*1000)/C57) -> 20.9292408 | D181: =((+$Q$160*D147*1000)/D57) -> 12.74214404 | E181: =(+$Q$160*E147*1000)/SUMPRODUCT(E45:E56,E27:E38) -> 49.34411069 | F181: =((+$Q$160*F147*1000)/F57) -> 0 | G181: =((+$Q$160*G147*1000)/G57) -> 0 | H181: =((+$Q$160*H147*1000)/H57) -> 12.89182196 | I181: =((+$Q$160*I147*1000)/I57) -> 0 | J181: =((+$Q$160*J147*1000)/J57) -> 0
B182: recovery per summer MWh | C182: =(C147*$F$158*$E$152)/SUM(C50:C53) -> 16.23676584 | D182: =(D147*$F$158*$E$152)/SUM(D50:D53) -> 18.69431739 | E182: =(E147*$F$158*$E$152)/SUMPRODUCT(E50:E53,E32:E35) -> 35.06383007 | F182: =(F147*$F$158*$E$152)/SUM(F50:F53) -> 0 | G182: =(G147*$F$158*$E$152)/SUM(G50:G53) -> 0 | H182: =(H147*$F$158*$E$152)/SUM(H50:H53) -> 19.80768304 | I182: =(I147*$F$158*$E$152)/SUM(I50:I53) -> 0 | J182: =(J147*$F$158*$E$152)/SUM(J50:J53) -> 0
B183: recovery per winter MWh | C183: =(C147*$F$159*$E$153)/SUM(C45:C49,C54:C56) -> 24.4813983 | D183: =(D147*$F$159*$E$153)/SUM(D45:D49,D54:D56) -> 10.98600356 | E183: =(E147*$F$159*$E$153)/(SUMPRODUCT(E45:E49,E27:E31)+SUMPRODUCT(E54:E56,E36:E38)) -> 62.02676213 | F183: =(F147*$F$159*$E$153)/SUM(F45:F49,F54:F56) -> 0 | G183: =(G147*$F$159*$E$153)/SUM(G45:G49,G54:G56) -> 0 | H183: =(H147*$F$159*$E$153)/SUM(H45:H49,H54:H56) -> 10.96902222 | I183: =(I147*$F$159*$E$153)/SUM(I45:I49,I54:I56) -> 0 | J183: =(J147*$F$159*$E$153)/SUM(J45:J49,J54:J56) -> 0
E184: For RLM, per
E185: on-peak kWh only
A187: Table #13 | B187: Summary of BGS Unit Costs @ customer
B189: NON-DEMAND RATES
B190: includes energy, G&T obligations, and Ancillary Services - adjusted to billing time periods
B191: in $/MWh
C192: =+C7 -> RS | D192: RHS | E192: RLM | F192: WH | G192: WHS | H192: HS | I192: PSAL | J192: BPL
B194: Summer - all hrs | C194: =+C130+($D$171*C80)+C$178+C181 -> 90.63410836 | D194: =+D130+($D$171*D80)+D$178+D181 -> 71.19191901 | F194: =+F130+($D$171*F80)+F$178+F181 -> 40.39233411 | G194: =+G130+($D$171*G80)+G$178+G181 -> 40.01094388 | H194: =+H130+($D$171*H80)+H$178+H181 -> 72.02336038 | I194: =+I130+($D$171*I80)+I$178+I181 -> 36.26713111 | J194: =+J130+($D$171*J80)+J$178+J181 -> 36.31018495
B195: PSE&G On pk | E195: =+E131+($D$171*E80)+E$178+E181 -> 164.2935597
B196: PSE&G Off pk | E196: =+E132+($D$171*E80) -> 34.42852436
B197: Block 1 (0-600 kWh/m) | C197: =(C194*SUM(C50:C53)-C166*10*C164*SUM(C50:C53))/SUM(C50:C53) -> 87.57995236 | D197: =(D194*SUM(D50:D53)-D166*10*D164*SUM(D50:D53))/SUM(D50:D53) -> 66.94609601
B198: Block 2 (>600 kWh/m) | C198: =+C197+C166*10 -> 96.23195236 | D198: =+D197+D166*10 -> 78.51509601
B200: Winter - all hrs | C200: =+C134+($D$171*C80)+C$178+C181 -> 94.64719091 | D200: =+D134+($D$171*D80)+D$178+D181 -> 76.76760505 | F200: =+F134+($D$171*F80)+F$178+F181 -> 45.0893018 | G200: =+G134+($D$171*G80)+G$178+G181 -> 45.42230111 | H200: =+H134+($D$171*H80)+H$178+H181 -> 76.5600098 | I200: =+I134+($D$171*I80)+I$178+I181 -> 43.0368549 | J200: =+J134+($D$171*J80)+J$178+J181 -> 43.22046523
B201: PSE&G On pk | E201: =+E135+($D$171*E80)+E$178+E181 -> 166.3075589
B202: PSE&G Off pk | E202: =+E136+($D$171*E80) -> 40.62588331
B204: Annual -all hrs | C204: =+C138+($D$171*C80)+C$178+C181 -> 92.91817493 | D204: =+D138+($D$171*D80)+D$178+D181 -> 75.4973288 | E204: =((E195*SUMPRODUCT(E32:E35,E50:E53)+E196*SUMPRODUCT(Q32:Q35,E50:E53))+(E201*(SUMPRODUCT(E27:E31,E45:E49)+SUMPRODUCT(E36:E38,E54:E56))+E202*(SUMPRODUCT(Q27:Q31,E45:E49)+SUMPRODUCT(Q36:Q38,E54:E56))))/E57 -> 95.91916455 | F204: =+F138+($D$171*F80)+F$178+F181 -> 43.88851817 | G204: =+G138+($D$171*G80)+G$178+G181 -> 44.01935664 | H204: =+H138+($D$171*H80)+H$178+H181 -> 75.57308785 | I204: =+I138+($D$171*I80)+I$178+I181 -> 41.15061757 | J204: =+J138+($D$171*J80)+J$178+J181 -> 41.37006875
B206: DEMAND RATES
B207: includes energy and Ancillary Services, G&T obligations charged separately - adjusted to billing time periods
B208: in $/MWh
C209: =+K7 -> GLP | D209: =+L7 -> LPL-S | H209: PLUS: | I209: =+C209 -> GLP | J209: =+D209 -> LPL-S
B211: Summer - all hrs | C211: =+K130+($D$171*K80) -> 42.49773725 | D211: =+L130+($D$171*L$80) -> 41.98970355 | H211: Gen Cost
B212: PSE&G On pk | D212: =+L131+($D$171*L$80) -> 49.36967371 | H212: summer | I212: =+$F158*$E152/$H152/1000 -> 5.138446132 | J212: =+$F158*$E152/$H152/1000 -> 5.138446132 | K212: per kW of G obl /month
B213: PSE&G Off pk | D213: =+L132+($D$171*L$80) -> 34.31746497 | H213: winter | I213: =+$F159*$E153/$H153/1000 -> 5.117386927 | J213: =+$F159*$E153/$H153/1000 -> 5.117386927 | K213: per kW of G obl /month
H214: annual | I214: =($F$158*$E$152+$F$159*$E$153)/$H$154/1000 -> 5.124406662 | J214: =($F$158*$E$152+$F$159*$E$153)/$H$154/1000 -> 5.124406662 | K214: per kW of G obl /month
B215: Winter - all hrs | C215: =+K134+($D$171*K80) -> 46.09685228 | D215: =+L134+($D$171*L$80) -> 45.88604072
B216: PSE&G On pk | D216: =+L135+($D$171*L$80) -> 51.41315628 | H216: Trans cost
B217: PSE&G Off pk | D217: =+L136+($D$171*L$80) -> 40.48095587 | H217: all months | I217: =+$D155/1000/12 -> 7.362979167 | J217: =+$D155/1000/12 -> 7.362979167 | K217: per kW of T obl /month
B219: Annual - all hrs per MWh only | C219: =+K138+($D$171*K80) -> 44.76344749 | D219: =+L138+($D$171*L$80) -> 44.50024579
B221: Including T&G Obligation $
B222: Summer - all hrs | C222: =(C211*W49+((I214*$H152)*K147*1000)+(I217*$H152*K149*1000))/W49 -> 82.23830807 | D222: =(D211*X49+((J214*$H152)*L147*1000)+(J217*$H152*L149*1000))/X49 -> 71.00182836 | F222: Note: Obligation $ included in On pk costs
B223: PSE&G On pk | D223: =(D212*X50+((J214*$H152)*L147*1000)+(J217*$H152*L149*1000))/X50 -> 106.2887272
B224: PSE&G Off pk | D224: =+D213 -> 34.31746497
B226: Winter - all hrs | C226: =(C215*W45+((I214*$H153)*K147*1000)+(I217*$H153*K149*1000))/W45 -> 92.87270799 | D226: =(D215*X45+((J214*$H153)*L147*1000)+(J217*$H153*L149*1000))/X45 -> 77.91486273
B227: PSE&G On pk | D227: =(D216*X46+((J214*$H153)*L147*1000)+(J217*$H153*L149*1000))/X46 -> 116.1939157
B228: PSE&G Off pk | D228: =+D217 -> 40.48095587
B230: Annual - including T&G Obl $ | C230: =(C219*K57+((I214*$H152+I214*$H153)*K147*1000)+(I217*$H154*K149*1000))/K57 -> 88.93286175 | D230: =(D219*L57+((J214*$H152+J214*$H153)*L147*1000)+(J217*$H154*L149*1000))/L57 -> 75.45613097
B232: ALL RATES
B233: Grand Total Cost in $1000 = | C233: =(+SUMPRODUCT(C204:J204,C57:J57)+SUMPRODUCT(C230:D230,K57:L57))/1000 -> 2090819.604
C234: All-In Average cost @ customer = | D234: =+C233/SUM(C57:L57)*1000 -> 87.51741115 | E234: per MWh at customer (per customer metered MWh)
C235: All-In Average costs @ transmission nodes = | D235: =+C233/SUMPRODUCT(C57:L57,C85:L85)*1000 -> 81.42851268 | E235: per MWh at transmission nodes (per metered MWh at transmission node)
A238: Table #14 | B238: Ratio of BGS Unit Costs @ customer to All-In Average Cost @ transmission nodes - rounded to 3 decimal places, unit obligation $ rounded to 4 decimal places
B240: NON-DEMAND RATES
B241: includes energy, G&T obligations, and Ancillary Services - adjusted to billing time periods
C243: =+C7 -> RS | D243: RHS | E243: RLM | F243: WH | G243: WHS | H243: HS | I243: PSAL | J243: BPL
B245: Summer - all hrs | F245: =ROUND(+F194/$D$235,3) -> 0.496 | G245: =ROUND(+G194/$D$235,3) -> 0.491 | H245: =ROUND(+H194/$D$235,3) -> 0.884 | I245: =ROUND(+I194/$D$235,3) -> 0.445 | J245: =ROUND(+J194/$D$235,3) -> 0.446
B246: PSE&G On pk | E246: =ROUND(+E195/$D$235,3) -> 2.018 | J246: Use weighted average
B247: PSE&G Off pk | E247: =ROUND(+E196/$D$235,3) -> 0.423 | J247: for all streetlighting = | K247: =ROUND((I245*U49+J245*V49)/(U49+V49),3) -> 0.446
B249: All usage Multiplier | C249: =ROUND(+C194/$D$235,3) -> 1.113 | D249: =ROUND(+D194/$D$235,3) -> 0.874
B250: Constant (in $/MWh) | C250: =ROUND(+C197-C194,3) -> -3.054 | D250: =ROUND(D197-D194,3) -> -4.246 | E250: for Block 1 (0-600 kWh/m) usage
... 76 more rows

Sheet auction_results_and_rates
B1: Calculation of June 2018 to May 2019 BGS-RSCP Rates
B2: Final
B3: NJ Sales & Use Tax (SUT) excluded
A5: Table A | B5: Auction Results | M5: Line Designation | N5: Incremental RPM cost $/MWh | O5: 2016 Auction | P5: 2017 Auction | Q5: 2018 Auction
A6: line # | B6: Specific BGS-FP Auction >> | C6: remaining portion of 36 month bid - 2016 auction | D6: remaining portion of 36 month bid - 2017 auction | E6: 36 month bid - 2018 auction | G6: Notes: | M6: A | N6: Incremental Capacity Cost | O6: No adder required as data known prior to Feb. 2016 auction | P6: No adder required as data known prior to Feb. 2017 auction | Q6: No adder required as data known prior to Feb. 2018 auction
M7: B | N7: Total Generation Obligation
A8: 1 | B8: Winning Bid - in $/MWh | C8: =Input!C136 -> 96.38 | D8: =Input!D136 -> 90.78 | E8: =+Input!E136 -> 90.78 | G8: Winning Bid | M8: C | N8: Days in Year
A9: 1A | B9: Incremental RPM Cost - in $/MWh | G9: The Incremental RPM Cost is not applicable for tranches from the 2016, 2017, or 2018 BGS-RSCP Auctions | M9: D = A * B * C | N9: Total Incremental Cost
B10: Total - in $/MWh | C10: =+C8+C9 -> 96.38 | D10: =+D8+D9 -> 90.78 | E10: =+E8+E9 -> 90.78 | G10: = line 1 + line 2 | M10: E | N10: Eligible Tranches
M11: F | N11: Total Inc. Adder Tranches
B12: (includes all payments, including impact of PJM marginal losses) | M12: G = E / F | N12: Eligibility %
A13: 2 | B13: # of Tranches for Bid | C13: =Input!C137 -> 28 | D13: =Input!D137 -> 28 | E13: =Input!E137 -> 29 | G13: from then current Bid | M13: H = D * G | N13: Allocated Period Cost
A14: 3 | B14: Total # of Tranches | C14: 85 | D14: 85 | E14: 85 | G14: from then current Bid | M14: I | N14: Total Tranches
B15: Payment Factors | M15: J | N15: Total MWhs
A16: 4 | B16: Summer | C16: =Input!C140 -> 1 | D16: =Input!D140 -> 1 | E16: =IF(LEFT(Input!$B$2,6)="rebase",Input!E140,bid_factors!L316) -> 1 | M16: K = E / I * J | N16: Allocated MWhs
A17: 5 | B17: Winter | C17: =Input!C141 -> 1 | D17: =Input!D141 -> 1 | E17: =IF(LEFT(Input!$B$2,6)="rebase",Input!E141,bid_factors!L317) -> 1 | M17: L = H / K | N17: Incremental RPM Cost
B19: Applicable Customer Usage @ transmission nodes - in MWh
A20: 6 | B20: Summer MWh | C20: =+bid_factors!C352 -> 10178254.71 | G20: from Table #17 of the current Bid Factor Spreadsheet
A21: 7 | B21: Winter MWh | C21: =+bid_factors!C353 -> 15498495.79
B23: Total Payment to Suppliers - in $1000
A24: 8 | B24: Summer | C24: =+C$8*C$13/C$14*C16*$C20/1000+C$9*C$13/C$14*$C20/1000 -> 323146.4153 | D24: =+D$8*D$13/D$14*D16*$C20/1000+D$9*D$13/D$14*$C20/1000 -> 304370.529 | E24: 315240.905 | G24: = (1) * (2)/(3) * (4) * (6) + (1A) * (2)/(3) * (6)
A25: 9 | B25: Winter | C25: =+C$8*C$13/C$14*C17*$C21/1000+C$9*C$13/C$14*$C21/1000 -> 492057.1845 | D25: =+D$8*D$13/D$14*D17*$C21/1000+D$9*D$13/D$14*$C21/1000 -> 463467.0181 | E25: 480019.4116 | G25: = (1) * (2)/(3) * (5) * (7) + (1A) * (2)/(3) * (7)
A26: 10 | B26: Total | C26: =+C25+C24 -> 815203.5998 | D26: =+D25+D24 -> 767837.5471 | E26: =+E25+E24 -> 795260.3167 | G26: Note: $ reflect total payment
B28: Average Payment to Suppliers - in $/MWh
A29: 11 | B29: Summer | C29: =ROUND(+SUM(C24:E24)/C20*1000,3) -> 92.625 | G29: = sum(line 8) / (6) - rounded to 3 decimal places
A30: 12 | B30: Winter | C30: =ROUND(+SUM(C25:E25)/C21*1000,3) -> 92.625 | G30: = sum(line 9) / (7) - rounded to 3 decimal places
A32: 13 | B32: Total weighted average | C32: =ROUND(+SUM(C26:E26)/(C20+C21)*1000,3) -> 92.625 | D32: <<< used in calculation of | G32: = sum(line 10) / [ (6) + (7)]
D33: Customer Rates | G33: rounded to 3 decimal places
B35: Reconciliation of amounts - in $1000
A36: 14 | B36: Weighted Average * Total MWh = | C36: =(C32*(C21+C20))/1000 -> 2378309.016 | G36: = (13) * [(6)+(7)] / 1000
A37: 15 | B37: Total Payment to Suppliers = | C37: =SUM(C26:E26) -> 2378301.464 | G37: = sum (line 10)
A38: 16 | B38: Difference = | C38: =+C36-C37 -> 7.551985443 | G38: = line (14) - line (15)
A41: Table B | B41: Ratio of BGS Unit Costs @ customer to All-In Average Cost @ transmission nodes | G41: from Table #14 of the bid factor spreadsheet ---
G42: rounded to 3 decimal places, unit obligation $ rounded to 4 decimal places
B43: NON-DEMAND RATES
B44: includes energy, G&T obligations, and Ancillary Services - adjusted to billing time periods
C46: =+bid_factors!C243 -> RS | D46: =+bid_factors!D243 -> RHS | E46: =+bid_factors!E243 -> RLM | F46: =+bid_factors!F243 -> WH | G46: =+bid_factors!G243 -> WHS | H46: =+bid_factors!H243 -> HS | I46: =+bid_factors!I243 -> PSAL | J46: =+bid_factors!J243 -> BPL
B48: Summer - all hrs | F48: =+bid_factors!F245 -> 0.496 | G48: =+bid_factors!G245 -> 0.491 | H48: =+bid_factors!H245 -> 0.884 | I48: =+bid_factors!I245 -> 0.445 | J48: =+bid_factors!J245 -> 0.446
B49: PSE&G On pk | E49: =+bid_factors!E246 -> 2.018 | J49: Use weighted average
B50: PSE&G Off pk | E50: =+bid_factors!E247 -> 0.423 | J50: for all streetlighting = | K50: =+bid_factors!K247 -> 0.446
B52: All usage Multiplier | C52: =+bid_factors!C249 -> 1.113 | D52: =+bid_factors!D249 -> 0.874
B53: Constant (in $/MWh) | C53: =+bid_factors!C250 -> -3.054 | D53: =+bid_factors!D250 -> -4.246 | E53: for Block 1 (0-600 kWh/m) usage
B54: Constant (in $/MWh) | C54: =+bid_factors!C251 -> 5.598 | D54: =+bid_factors!D251 -> 7.323 | E54: for Block 2 (>600 kWh/m) usage
B58: Winter - all hrs | C58: =+bid_factors!C255 -> 1.162 | D58: =+bid_factors!D255 -> 0.943 | F58: =+bid_factors!F255 -> 0.554 | G58: =+bid_factors!G255 -> 0.558 | H58: =+bid_factors!H255 -> 0.94 | I58: =+bid_factors!I255 -> 0.529 | J58: =+bid_factors!J255 -> 0.531
B59: PSE&G On pk | E59: =+bid_factors!E256 -> 2.042 | J59: Use weighted average
B60: PSE&G Off pk | E60: =+bid_factors!E257 -> 0.499 | J60: for all streetlighting = | K60: =+bid_factors!K257 -> 0.53
B62: Annual - all hrs | C62: =+bid_factors!C259 -> 1.141 | D62: =+bid_factors!D259 -> 0.927 | E62: =+bid_factors!E259 -> 1.178 | F62: =+bid_factors!F259 -> 0.539 | G62: =+bid_factors!G259 -> 0.541 | H62: =+bid_factors!H259 -> 0.928 | I62: =+bid_factors!I259 -> 0.505 | J62: =+bid_factors!J259 -> 0.508
B65: DEMAND RATES
B66: includes energy and Ancillary Services, G&T obligations charged separately - adjusted to billing time periods
C68: =+bid_factors!C265 -> GLP | D68: =+bid_factors!D265 -> GLP | E68: =+bid_factors!E265 -> LPL-S | F68: =+bid_factors!F265 -> LPL-S | H68: PLUS: | I68: =+C68 -> GLP | J68: =+E68 -> LPL-S
C69: Multiplier | D69: Constant (in $/MWh) | E69: Multiplier | F69: Constant (in $/MWh)
B70: Summer - all hrs | C70: =+bid_factors!C267 -> 1.01 | D70: =+bid_factors!D267 -> -39.741 | H70: Gen Cost
B71: PSE&G On pk | E71: =+bid_factors!E268 -> 1.305 | F71: =+bid_factors!F268 -> -56.919 | H71: summer | I71: =+bid_factors!I$270 -> 5.1244 | J71: =+bid_factors!J$270 -> 5.1244 | K71: per kW of G obl /month
B72: PSE&G Off pk | E72: =+bid_factors!E269 -> 0.421 | F72: =+bid_factors!F269 -> 0 | H72: winter | I72: =+bid_factors!I$270 -> 5.1244 | J72: =+bid_factors!J$270 -> 5.1244 | K72: per kW of G obl /month
B74: Winter - all hrs | C74: =+bid_factors!C271 -> 1.141 | D74: =+bid_factors!D271 -> -46.776 | H74: Trans cost
B75: PSE&G On pk | E75: =+bid_factors!E272 -> 1.427 | F75: =+bid_factors!F272 -> -64.781 | H75: all months | I75: =+bid_factors!I273 -> 7.363 | J75: =+bid_factors!J273 -> 7.363 | K75: per kW of T obl /month
B76: PSE&G Off pk | E76: =+bid_factors!E273 -> 0.497 | F76: =+bid_factors!F273 -> 0
B78: Annual - including T&G Obl $ | C78: =+bid_factors!C275 -> 1.092 | E78: =+bid_factors!E275 -> 0.927
A81: Table C | B81: Preliminary Resulting BGS Rates (in cents per kWh) - equal to bid factors times weighted average bid price
B82: rounded to 4 decimal places
B84: NON-DEMAND RATES -----------------------------------------------------------------------------------------------------------------------------------------------------------------------
B85: includes energy, G&T obligations, and Ancillary Services - adjusted to billing time periods
C87: =+C46 -> RS | D87: =+D46 -> RHS | E87: RLM | F87: WH | G87: WHS | H87: HS | I87: PSAL | J87: BPL
B89: Summer - all hrs | F89: =ROUND(($C$32*F48)/10,4) -> 4.5942 | G89: =ROUND(($C$32*G48)/10,4) -> 4.5479 | H89: =ROUND(($C$32*H48)/10,4) -> 8.1881 | I89: =ROUND(($C$32*K50)/10,4) -> 4.1311 | J89: =+I89 -> 4.1311
B90: PSE&G On pk | E90: =ROUND(($C$32*E49)/10,4) -> 18.6917
B91: PSE&G Off pk | E91: =ROUND(($C$32*E50/10),4) -> 3.918
B93: for Block 1 (0-600 kWh/m) usage | C93: =ROUND((+$C$32*C52+C53)/10,4) -> 10.0038 | D93: =ROUND((+$C$32*D52+D53)/10,4) -> 7.6708
B94: for Block 2 (>600 kWh/m) usage | C94: =ROUND((+$C$32*C52+C54)/10,4) -> 10.869 | D94: =ROUND((+$C$32*D52+D54)/10,4) -> 8.8277
B96: Winter - all hrs | C96: =ROUND(($C$32*C58)/10,4) -> 10.763 | D96: =ROUND(($C$32*D58)/10,4) -> 8.7345 | F96: =ROUND(($C$32*F58)/10,4) -> 5.1314 | G96: =ROUND(($C$32*G58)/10,4) -> 5.1685 | H96: =ROUND(($C$32*H58)/10,4) -> 8.7068 | I96: =ROUND(($C$32*K60)/10,4) -> 4.9091 | J96: =+I96 -> 4.9091
B97: PSE&G On pk | E97: =ROUND(($C$32*E59)/10,4) -> 18.914
B98: PSE&G Off pk | E98: =ROUND(($C$32*E60)/10,4) -> 4.622
B102: DEMAND RATES --------------------------------------------------------------------------------------------------------------------------------------------------------------------------------
B103: includes energy and Ancillary Services, G&T obligations charged separately - adjusted to billing time periods
C105: =+C68 -> GLP | E105: =+E68 -> LPL-S | H105: PLUS: | I105: =+C105 -> GLP | J105: =+E105 -> LPL-S
B107: Summer - all hrs | C107: =ROUND(($C$32*C70+D70)/10,4) -> 5.381 | H107: Gen Cost
B108: PSE&G On pk | E108: =ROUND(($C$32*E71+F71)/10,4) -> 6.3957 | H108: summer | I108: =+I71 -> 5.1244 | J108: =+J71 -> 5.1244 | K108: per kW of G obl /month
B109: PSE&G Off pk | E109: =ROUND(($C$32*E72+F72)/10,4) -> 3.8995 | H109: winter | I109: =+I72 -> 5.1244 | J109: =+J72 -> 5.1244 | K109: per kW of G obl /month
B111: Winter - all hrs | C111: =ROUND(($C$32*C74+D74)/10,4) -> 5.8909 | H111: Trans cost
B112: PSE&G On pk | E112: =ROUND(($C$32*E75+F75)/10,4) -> 6.7395 | H112: all months | I112: =+I75 -> 7.363 | J112: =+J75 -> 7.363 | K112: per kW of T obl /month
B113: PSE&G Off pk | E113: =ROUND(($C$32*E76+F76)/10,4) -> 4.6035
A117: Table D | B117: Revenue Recovery Calculations - Reconciliation of seasonal Customer Revenue and Supplier Payments, based on actual anticipated revenues and payments
C119: RS | D119: RHS | E119: RLM | F119: WH | G119: WHS | H119: HS | I119: PSAL | J119: BPL
B120: Total Preliminary Rate Revenue - in $1000
B121: Summer | C121: =+C93/100*bid_factors!O53+auction_results_and_rates!C94/100*bid_factors!O54 -> 541140.4986 | D121: =+D93/100*bid_factors!P53+auction_results_and_rates!D94/100*bid_factors!P54 -> 2412.06408 | E121: =+E90/100*bid_factors!Q50+E91/100*bid_factors!Q51 -> 10693.51049 | F121: =+F89/100*bid_factors!R49 -> 15.068976 | G121: =+G89/100*bid_factors!S49 -> 0.318353 | H121: =+H89/100*bid_factors!T49 -> 280.3852733 | I121: =+I89/100*bid_factors!U49 -> 1829.788123 | J121: =+J89/100*bid_factors!V49 -> 3277.325563
B122: Winter | C122: =+C96/100*bid_factors!O45 -> 746324.1692 | D122: =+D96/100*bid_factors!P45 -> 8820.756773 | E122: =+E97/100*bid_factors!Q46+auction_results_and_rates!E98/100*bid_factors!Q47 -> 13108.06442 | F122: =+F96/100*bid_factors!R45 -> 49.00487 | G122: =+G96/100*bid_factors!S45 -> 1.0337 | H122: =+H96/100*bid_factors!T45 -> 1072.365503 | I122: =+I96/100*bid_factors!U45 -> 5629.510425 | J122: =+J96/100*bid_factors!V45 -> 10649.55608
B123: Total | C123: =+C122+C121 -> 1287464.668 | D123: =+D122+D121 -> 11232.82085 | E123: 23801.57491 | F123: 64.073846 | G123: 1.352053 | H123: 1352.750776 | I123: 7459.298548 | J123: 13926.88165
C126: GLP | D126: GLP | F126: LPL-S | G126: LPL-S
C127: Energy $ | D127: Obligation $ | F127: Energy $ | G127: Obligation $
B129: Summer | C129: =+C107/100*bid_factors!W49 -> 127994.2089 | D129: =I108*bid_factors!K147*4+auction_results_and_rates!I112*bid_factors!K149*4 -> 94528.30248 | F129: =+E108/100*bid_factors!X50+auction_results_and_rates!E109/100*bid_factors!X51 -> 82140.03723 | G129: =auction_results_and_rates!J108*bid_factors!L147*4+auction_results_and_rates!J112*bid_factors!L149*4 -> 46077.64256
B130: Winter | C130: =+C111/100*bid_factors!W45 -> 238095.5806 | D130: =auction_results_and_rates!I109*bid_factors!K147*8+auction_results_and_rates!I112*bid_factors!K149*8 -> 189056.605 | F130: =+E112/100*bid_factors!X46+auction_results_and_rates!E113/100*bid_factors!X47 -> 162840.6928 | G130: =auction_results_and_rates!J109*bid_factors!L147*8+auction_results_and_rates!J112*bid_factors!L149*8 -> 92155.28512
B131: Total | C131: =+C130+C129 -> 366089.7894 | D131: =+D130+D129 -> 283584.9074 | F131: =+F130+F129 -> 244980.73 | G131: =+G130+G129 -> 138232.9277
C134: Energy $ | D134: Obligation $ | E134: Total $
B135: Total Summer | C135: =SUM(C121:J121)+C129+F129 -> 769783.2055 | D135: =+D129+G129 -> 140605.945 | E135: =+C135+D135 -> 910389.1506
B136: Total Winter | C136: =SUM(C122:J122)+C130+F130 -> 1186590.734 | D136: =+D130+G130 -> 281211.8901 | E136: =+C136+D136 -> 1467802.624
B137: Grand Total | C137: =+C136+C135 -> 1956373.94 | D137: =+D131+G131 -> 421817.8351 | E137: =+C137+D137 -> 2378191.775
B140: Total Supplier Payment - in $1000
B141: Summer | C141: =+C24+D24+E24 -> 942757.8493
B142: Winter | C142: =+C25+D25+E25 -> 1435543.614
B143: Total | C143: =+C142+C141 -> 2378301.464 | E143: kWh Rate
E144: Adjustment | F144: rounded to 5 decimal places
B145: Differences - in $1000 | E145: Factors
B146: Summer | C146: =+C141-E135 -> 32368.6987 | E146: =ROUND(1+(C146/C135),5) -> 1.04205
B147: Winter | C147: =+C142-E136 -> -32259.01013 | E147: =ROUND(1+(C147/C136),5) -> 0.97281
B148: Total | C148: =+C143-E137 -> 109.6885635
C150: Note: These differences are due to rounding and seasonal differences in Bidder Payments (which are based on prior
C151: wining bids and Seasonal Payment Factors) and current Rates (based on current seasonal market differentials)
A153: Table E | B153: Final Resulting BGS Rates from Auctions (in cents per kWh) - with preliminary kWh rates adjusted by the kWh Rate Adjustment Factor
B154: rounded to 4 decimal places
B156: NON-DEMAND RATES -----------------------------------------------------------------------------------------------------------------------------------------------------------------------
B157: includes energy, G&T obligations, and Ancillary Services - adjusted to billing time periods & adjustment to energy price
C159: =+C119 -> RS | D159: =+D119 -> RHS | E159: RLM | F159: WH | G159: WHS | H159: HS | I159: PSAL | J159: BPL
B161: Summer - all hrs | F161: =ROUND(+F89*$E$146,4) -> 4.7874 | G161: =ROUND(+G89*$E$146,4) -> 4.7391 | H161: =ROUND(+H89*$E$146,4) -> 8.5324 | I161: =ROUND(+I89*$E$146,4) -> 4.3048 | J161: =ROUND(+J89*$E$146,4) -> 4.3048
B162: PSE&G On pk | E162: =ROUND(+E90*$E$146,4) -> 19.4777
B163: PSE&G Off pk | E163: =ROUND(+E91*$E$146,4) -> 4.0828
B165: for Block 1 (0-600 kWh/m) usage | C165: =ROUND(+C93*$E$146,4) -> 10.4245 | D165: =ROUND(+D93*$E$146,4) -> 7.9934
B166: for Block 2 (>600 kWh/m) usage | C166: =ROUND(+C94*$E$146,4) -> 11.326 | D166: =ROUND(+D94*$E$146,4) -> 9.1989
B168: Winter - all hrs | C168: =ROUND(+C96*$E$147,4) -> 10.4704 | D168: =ROUND(+D96*$E$147,4) -> 8.497 | F168: =ROUND(+F96*$E$147,4) -> 4.9919 | G168: =ROUND(+G96*$E$147,4) -> 5.028 | H168: =ROUND(+H96*$E$147,4) -> 8.4701 | I168: =ROUND(+I96*$E$147,4) -> 4.7756 | J168: =ROUND(+J96*$E$147,4) -> 4.7756
B169: PSE&G On pk | E169: =ROUND(+E97*$E$147,4) -> 18.3997
B170: PSE&G Off pk | E170: =ROUND(+E98*$E$147,4) -> 4.4963
B174: DEMAND RATES --------------------------------------------------------------------------------------------------------------------------------------------------------------------------------
B175: includes energy and Ancillary Services, G&T obligations charged separately - adjusted to billing time periods & adjustment to energy price
C177: =+C105 -> GLP | E177: =+E105 -> LPL-S | H177: PLUS: | I177: =+C177 -> GLP | J177: =+E177 -> LPL-S
B179: Summer - all hrs | C179: =ROUND(+C107*$E$146,4) -> 5.6073 | H179: Gen Cost
B180: PSE&G On pk | E180: =ROUND(+E108*$E$146,4) -> 6.6646 | H180: summer | I180: =+I108 -> 5.1244 | J180: =+J108 -> 5.1244
B181: PSE&G Off pk | E181: =ROUND(+E109*$E$146,4) -> 4.0635 | H181: winter | I181: =+I109 -> 5.1244 | J181: =+J109 -> 5.1244
B183: Winter - all hrs | C183: =ROUND(+C111*$E$147,4) -> 5.7307 | H183: Trans cost
B184: PSE&G On pk | E184: =ROUND(+E112*$E$147,4) -> 6.5563 | H184: all months | I184: =+I112 -> 7.363 | J184: =+J112 -> 7.363
B185: PSE&G Off pk | E185: =ROUND(+E113*$E$147,4) -> 4.4783
A189: Table F | B189: Spreadsheet Error Checking - Checking of seasonal Customer Revenue and Supplier Payments, based on final actual anticipated revenues and payments
C191: RS | D191: RHS | E191: RLM | F191: WH | G191: WHS | H191: HS | I191: PSAL | J191: BPL | K191: GLP | L191: LPL-S
B192: Total Rate Revenue - in $1000
B193: Summer | C193: =+C165/100*bid_factors!O53+auction_results_and_rates!C166/100*bid_factors!O54 -> 563896.0541 | D193: =+D165/100*bid_factors!P53+auction_results_and_rates!D166/100*bid_factors!P54 -> 2513.498935 | E193: =+E162/100*bid_factors!Q50+E163/100*bid_factors!Q51 -> 11143.20335 | F193: =+F161/100*bid_factors!R49 -> 15.702672 | G193: =+G161/100*bid_factors!S49 -> 0.331737 | H193: =+H161/100*bid_factors!T49 -> 292.1751451 | I193: =+I161/100*bid_factors!U49 -> 1906.725064 | J193: =+J161/100*bid_factors!V49 -> 3415.126984 | K193: =+C179/100*bid_factors!W49+I180*bid_factors!K147*4+auction_results_and_rates!I184*bid_factors!K149*4 -> 227905.3565 | L193: =+E180/100*bid_factors!X50+auction_results_and_rates!E181/100*bid_factors!X51+auction_results_and_rates!J180*bid_factors!L147*4+auction_results_and_rates!J184*bid_factors!L149*4 -> 131671.5538
B194: Winter | C194: =+C168/100*bid_factors!O45 -> 726034.8027 | D194: =+D168/100*bid_factors!P45 -> 8580.911363 | E194: =+E169/100*bid_factors!Q46+auction_results_and_rates!E170/100*bid_factors!Q47 -> 12751.62217 | F194: =+F168/100*bid_factors!R45 -> 47.672645 | G194: =+G168/100*bid_factors!S45 -> 1.0056 | H194: =+H168/100*bid_factors!T45 -> 1043.212552 | I194: =+I168/100*bid_factors!U45 -> 5476.4193 | J194: =+J168/100*bid_factors!V45 -> 10359.94786 | K194: =+C183/100*bid_factors!W45+auction_results_and_rates!I181*bid_factors!K147*8+auction_results_and_rates!I184*bid_factors!K149*8 -> 420677.2985 | L194: =+E184/100*bid_factors!X46+auction_results_and_rates!E185/100*bid_factors!X47+auction_results_and_rates!J181*bid_factors!L147*8+auction_results_and_rates!J184*bid_factors!L149*8 -> 250568.5596
B195: Total | C195: =+C194+C193 -> 1289930.857 | D195: 11094.4103 | E195: 23894.82553 | F195: 63.375317 | G195: 1.337337 | H195: 1335.387697 | I195: 7383.144364 | J195: 13775.07484 | K195: 648582.655 | L195: 382240.1134
B197: Total Summer | C197: =SUM(C193:L193) -> 942759.7282
B198: Total Winter | C198: =SUM(C194:L194) -> 1435541.452
B199: Grand Total | C199: =+C198+C197 -> 2378301.181
B202: Total Supplier Payment - in $1000
B203: Summer | C203: =+C24+D24+E24 -> 942757.8493
B204: Winter | C204: =+C25+D25+E25 -> 1435543.614
B205: Total | C205: =+C204+C203 -> 2378301.464
B207: Differences - in $1000 | E207: % difference
B208: Summer | C208: =+C197-C203 -> 1.878964339 | E208: =+C208/C197 -> 1.993046884e-06
B209: Winter | C209: =+C198-C204 -> -2.16201773 | E209: =+C209/C198 -> -1.506064298e-06
B210: Total | C210: =+C199-C205 -> -0.2830533907 | E210: =+C210/C199 -> -1.190149477e-07
A213: DO NOT USE
A214: Table G | B214: Final Resulting BGS Rates with NITS Differential Adder (in cents per kWh) - with preliminary kWh rates adjusted by the kWh Rate Adjustment Factor
B215: rounded to 4 decimal places
B217: NON-DEMAND RATES -----------------------------------------------------------------------------------------------------------------------------------------------------------------------
B218: includes energy, G&T obligations, Ancillary Services, and NITS Differential Adder - adjusted to billing time periods & adjustment to energy price
C220: =C159 -> RS | D220: =D159 -> RHS | E220: RLM | F220: WH | G220: WHS | H220: HS | I220: PSAL | J220: BPL
B222: Summer - all hrs | F222: =ROUND(+F161+bid_factors!#REF!*100,4) ->  | G222: =ROUND(+G161+bid_factors!#REF!*100,4) ->  | H222: =ROUND(+H161+bid_factors!#REF!*100,4) ->  | I222: =ROUND(+I161+bid_factors!#REF!*100,4) ->  | J222: =ROUND(+J161+bid_factors!#REF!*100,4) -> 
B223: PSE&G On pk | E223: =ROUND(E162+bid_factors!#REF!*100,4) -> 
B224: PSE&G Off pk | E224: =ROUND(E163+bid_factors!#REF!*100,4) -> 
B226: for Block 1 (0-600 kWh/m) usage | C226: =ROUND(+C165+bid_factors!#REF!*100,4) ->  | D226: =ROUND(+D165+bid_factors!#REF!*100,4) -> 
B227: for Block 2 (>600 kWh/m) usage | C227: =ROUND(+C166+bid_factors!#REF!*100,4) ->  | D227: =ROUND(+D166+bid_factors!#REF!*100,4) -> 
B229: Winter - all hrs | C229: =ROUND(+C168+bid_factors!#REF!*100,4) ->  | D229: =ROUND(+D168+bid_factors!#REF!*100,4) ->  | F229: =ROUND(+F168+bid_factors!#REF!*100,4) ->  | G229: =ROUND(+G168+bid_factors!#REF!*100,4) ->  | H229: =ROUND(+H168+bid_factors!#REF!*100,4) ->  | I229: =ROUND(+I168+bid_factors!#REF!*100,4) ->  | J229: =ROUND(+J168+bid_factors!#REF!*100,4) -> 
B230: PSE&G On pk | E230: =ROUND(E169+bid_factors!#REF!*100,4) -> 
B231: PSE&G Off pk | E231: =ROUND(E170+bid_factors!#REF!*100,4) -> 
B235: DEMAND RATES --------------------------------------------------------------------------------------------------------------------------------------------------------------------------------
B236: includes energy and Ancillary Services, G&T obligations with NITS Differential Adder charged separately - adjusted to billing time periods & adjustment to energy price
C238: =C177 -> GLP | E238: =E177 -> LPL-S | H238: PLUS: | I238: =+C238 -> GLP | J238: =+E238 -> LPL-S
B240: Summer - all hrs | C240: =C179 -> 5.6073 | H240: Gen Cost
B241: PSE&G On pk | E241: =E180 -> 6.6646 | H241: summer | I241: =I180 -> 5.1244 | J241: =J180 -> 5.1244
B242: PSE&G Off pk | E242: =E181 -> 4.0635 | H242: winter | I242: =I181 -> 5.1244 | J242: =J181 -> 5.1244
B244: Winter - all hrs | C244: =C183 -> 5.7307 | H244: Trans cost
B245: PSE&G On pk | E245: =E184 -> 6.5563 | H245: all months | I245: =ROUND(+I184+bid_factors!#REF!,4) ->  | J245: =ROUND(+J184+bid_factors!#REF!,4) -> 
B246: PSE&G Off pk | E246: =E185 -> 4.4783
A251: Table H | B251: Spreadsheet Error Checking - Checking of seasonal Customer Revenue and Supplier Payments, based on final actual anticipated revenues and payments
C253: RS | D253: RHS | E253: RLM | F253: WH | G253: WHS | H253: HS | I253: PSAL | J253: BPL | K253: GLP | L253: LPL-S
B254: Total Rate Revenue - in $1000
B255: Summer | C255: =+C226/100*bid_factors!O53+auction_results_and_rates!C227/100*bid_factors!O54 ->  | D255: =+D226/100*bid_factors!P53+auction_results_and_rates!D227/100*bid_factors!P54 ->  | E255: =+E223/100*bid_factors!Q50+E224/100*bid_factors!Q51 ->  | F255: =+F222/100*bid_factors!R49 ->  | G255: =+G222/100*bid_factors!S49 ->  | H255: =+H222/100*bid_factors!T49 ->  | I255: =+I222/100*bid_factors!U49 ->  | J255: =+J222/100*bid_factors!V49 ->  | K255: =+C240/100*bid_factors!W49+I241*bid_factors!K147*4+auction_results_and_rates!I245*bid_factors!K149*4 ->  | L255: =+E241/100*bid_factors!X50+auction_results_and_rates!E242/100*bid_factors!X51+auction_results_and_rates!J241*bid_factors!L147*4+auction_results_and_rates!J245*bid_factors!L149*4 -> 
B256: Winter | C256: =+C229/100*bid_factors!O45 ->  | D256: =+D229/100*bid_factors!P45 ->  | E256: =+E230/100*bid_factors!Q46+auction_results_and_rates!E231/100*bid_factors!Q47 ->  | F256: =+F229/100*bid_factors!R45 ->  | G256: =+G229/100*bid_factors!S45 ->  | H256: =+H229/100*bid_factors!T45 ->  | I256: =+I229/100*bid_factors!U45 ->  | J256: =+J229/100*bid_factors!V45 ->  | K256: =+C244/100*bid_factors!W45+auction_results_and_rates!I242*bid_factors!K147*8+auction_results_and_rates!I245*bid_factors!K149*8 ->  | L256: =+E245/100*bid_factors!X46+auction_results_and_rates!E246/100*bid_factors!X47+auction_results_and_rates!J242*bid_factors!L147*8+auction_results_and_rates!J245*bid_factors!L149*8 -> 
B257: Total | C257: =+C256+C255 -> 
B259: Total Summer | C259: =SUM(C255:L255) -> 
B260: Total Winter | C260: =SUM(C256:L256) -> 
B261: Grand Total | C261: =+C260+C259 -> 
B264: Total Supplier Payment - in $1000
C265: BGS-FP Auction | D265: NITS Differential Adder | E265: Total
B266: Summer | C266: =+SUM(C24:E24) -> 942757.8493 | D266: =bid_factors!#REF! ->  | E266: =SUM(C266:D266) -> 
B267: Winter | C267: =+SUM(C25:E25) -> 1435543.614 | D267: =bid_factors!#REF! ->  | E267: =SUM(C267:D267) -> 
B268: Total | C268: =+C267+C266 -> 2378301.464 | D268: =+D267+D266 ->  | E268: =+E267+E266 -> 
B270: Differences - in $1000 | E270: % difference
B271: Summer | C271: =+C259-E266 ->  | E271: =+C271/C259 -> 
B272: Winter | C272: =+C260-E267 ->  | E272: =+C272/C260 -> 
B273: Total | C273: =+C261-E268 ->  | E273: =+C273/C261 -> 
